Workbook

Sheet Introduction
A3: EPA Simplified GHG Emissions Calculator (SGEC) | G3: Version 4 | H3: January 2017
A4: The EPA Simplified GHG Emissions Calculator ("the Calculator") is designed as a simplified calculation tool to help organizations estimate and inventory their annual greenhouse gas (GHG) emissions for US-based operations. All methodologies and default values provided were based on the most current Center for Corporate Climate Leadership Greenhouse Gas Inventory Guidance Documents and the Emission Factors Hub. The Calculator will quantify the direct and indirect emissions from sources at an organization when activity data are entered into the various sections of the workbook for one annual period.
A6: Before entering data, please: 1) Enable Macros and 2) Familiarize yourself with the Guide to Greenhouse Gas Management for Small Business & Low Emitters.
B7: Download the guide: | D7: https://www.epa.gov/climateleadership/center-corporate-climate-leadership-small-business-and-low-emitters-guide
A9: There are three primary steps in completing a GHG inventory. Each emissions source also has these three steps.
B10: (1) DEFINE: The first step in completing a GHG inventory is to determine the boundaries and emissions sources included within those boundaries. After you have defined your organizational and operational boundaries, you can use the questions on the "Boundary Questions" worksheet to help you determine which emissions sources are relevant to your business.
C11: Go to Boundary Questions
B12: (2) COLLECT: The second step is to collect data for the defined annual period. This step is typically the most time consuming, since the data can be difficult to gather. This Calculator has help sheets with suggestions and guidance for each emissions source and a general help sheet for data management. Click the drop down menu boxes below to navigate to these sheets.
D14: Help - Market-Based Method
B15: (3) QUANTIFY: The third step is to calculate emissions. This Calculator is designed to complete the emissions quantification step for you. Once the user enters data in this MS Excel spreadsheet, the emissions will be calculated and totaled on the "Summary" sheet.
A17: Calculator Guidance - Important Information
A18: (A) Navigate to the data entry sheets using the drop down menu in the dark grey cell below and then clicking on the "Go To Data Entry Sheet" button. On the data entry sheets enter data in ORANGE cells only.
A19: (B) This Calculator has several "Tool Sheets" with useful reference data such as unit conversions, heat contents, and emission factors. Click on the buttons below to go to the appropriate Tool Sheet.
A20: (C) Data must be entered in the units specified on the data entry sheets. Use the "Unit Conversions" or "Heat Content" sheets if unit conversion is necessary prior to entering data into the Calculator.
A21: (D) If more guidance is needed, you can reference the emission factor data sources found on the "Emission Factors" sheet.
D23: Tool Sheets | E23: Quick Data Entry Navigation
E25: Stationary Combustion
A35: Calculator Notes
A36: Emission sources of all seven major GHGs are accounted for in the inventory and in this Calculator: carbon dioxide (CO2), methane (CH4), nitrous oxide (N2O), hydroﬂuorocarbons (HFCs), perﬂuorocarbons (PFCs), sulfur hexaﬂuoride (SF6), and nitrogen trifluoride (NF3). The Calculator allows the user to estimate GHG emissions from scope 1 (direct), scope 2 (indirect), and some scope 3 (other indirect) sources.
A37: The Calculator uses U.S.-specific cross-sector emission factors from the Emission Factors Hub. Many industrial sectors also have process-related emissions sources that are specific to their sector. EPA’s Greenhouse Gas Reporting Program provides guidance and tools that can aid in the calculation and reporting of these emissions:
B38: https://www.epa.gov/ghgreporting
A39: The GHG Protocol also provides guidance on calculating emissions from industrial processes.

Sheet Boundary Questions
A3: Operational Boundary Questions - Emissions Sources to Include
A5: Guidance
A6: Use the questions below to help you determine which emissions sources should be included in the inventory.
A8: Emissions Source Questions
A9: A typical office-based organization will likely have the following (scope 1 and scope 2) emissions sources:
B10: - Stationary Combustion
B11: - Refrigeration and AC
B12: - Electricity
A14: If you answer "yes" to a question below, that emissions source should be included in your inventory. For each facility within the defined organizational boundary, collect the necessary data for the selected time period. Use the corresponding Excel sheet to quantify these emissions.
A15: Tip: you may need to ask your landlord about heating sources, steam purchased and refrigerants
A16: Stationary Combustion | E16: Yes or No?
A17: Do you have facilities that burn fuels on-site (e.g., natural gas, propane, coal, fuel oil for heating, diesel fuel for backup generators, biomass fuels)? | E17: Y
A18: Mobile Sources
A19: Do any vehicles fall within your organizational boundary? This can include cars, trucks, propane forklifts, aircraft, boats. Only vehicles owned or leased by your organization should be included here. | E19: ?
A20: Refrigeration and Air Conditioning
A21: Do your facilities use refrigeration or air conditioning equipment? | E21: ?
A22: Fire Suppression
A23: Do your facilities use chemical fire suppressants? | E23: ?
A24: Purchased Gases
A25: Do you purchase any industrial gases for use in your business? These gases may be purchased for use in manufacturing, testing, or laboratories. | E25: ?
A26: Waste Gases
A27: Are VOCs combusted in thermal oxidizers in your facilities? | E27: ?
A28: Do you flare any gases on-site? | E28: ?
A29: Electricity
A30: Does your inventory include facilities that use electricity? | E30: ?
A31: Steam
A32: Do you purchase steam for heating or cooling in your facilities? | E32: ?
A33: Market-Based Emission Factors (entered on Electricity and or Steam tabs)
A34: Do you purchase renewable energy certificates (RECs) or green power products? Do you purchase electricity through a power purchase agreement (PPA)? Do you have supplier-specific emission factors? | E34: ?
A36: The questions below refer to scope 3 emissions sources and offsets. If you answer "yes" you may choose whether or not to include these emissions sources in your inventory. Use the corresponding sheet to enter data.
A37: Business Travel | E37: Yes or No?
A38: Do your employees travel for business using transportation other than owned or leased vehicles (e.g., commercial airline flights, rental cars, trains)? | E38: ?
A39: Employee Commuting
A40: Do your employees commute to work in personal vehicles or use public transportation? | E40: ?
A41: Product Transport
A42: Do you hire another company to transport products or other materials to or from your facilities? | E42: ?
A43: Offsets
A44: Do you purchase greenhouse gas offsets? | E44: ?

Sheet Summary
A3: Emissions Summary
A5: Guidance
A6: The total GHG emissions from each source category are provided below. You may also use this summary sheet to fill out the Annual GHG Inventory Summary and Goal Tracking Form as this calculator only quantifies one year of emissions at a time.
A7: http://www.epa.gov/climateleadership/documents/summaryform.xls
A8: By entering the data below into the appropriate cell of the Annual GHG Inventory Summary and Goal Tracking Form, you will be able to compare multiple years of data.
A10: If you have multiple Calculator files covering sub-sets of your inventory for a particular reporting period, sum each of the emission categories (e.g. Stationary Combustion) to an organizational total, which then can be entered into the Annual GHG Inventory Summary and Goal Tracking Form.
A14: (A) Enter organization information into the orange cells. Other cells on this sheet will be automatically calculated from the data entered in the sheets in this workbook. Blue cells indicate required emission sources if applicable. Green cells indicate scope 3 emission sources and offsets, which organizations may optionally include in their inventory.
A15: (B) The "Go To Sheet" buttons can be used to navigate to the data entry sheets.
A17: Organizational Information:
B18: Organization Name:
B20: Organization Address:
B23: Inventory Reporting Period: | E23: e.g., Calendar Year 2014, Fiscal Year 2014
E24: Start: | F24: MM/DD/YY | G24: End: | H24: MM/DD/YY
B26: Name of Preparer:
B27: Phone Number of Preparer:
B28: Date Prepared:
A30: Summary of Organization's Emissions:
B32: Scope 1 Emissions
B33: Stationary Combustion | G33: ='Stationary Combustion'!E95+'Waste Gases'!E47 -> 0 | H33: CO2-e (metric tons)
B34: Mobile Sources | G34: ='Mobile Sources'!E177 -> 0 | H34: CO2-e (metric tons)
B35: Refrigeration / AC Equipment Use | G35: ='Refrigeration and AC'!F130 -> 0 | H35: CO2-e (metric tons)
B36: Fire Suppression | G36: ='Fire Suppression'!F109 -> 0 | H36: CO2-e (metric tons)
B37: Purchased Gases | G37: ='Purchased Gases'!E30 -> 0 | H37: CO2-e (metric tons)
B39: Location-Based Scope 2 Emissions
B40: Purchased and Consumed Electricity | G40: =Electricity!E63 -> 0 | H40: CO2-e (metric tons)
B41: Purchased and Consumed Steam | G41: =Steam!F113 -> 0 | H41: CO2-e (metric tons)
B43: Market-Based Scope 2 Emissions
B44: Purchased and Consumed Electricity | G44: =Electricity!E64 -> 0 | H44: CO2-e (metric tons)
B45: Purchased and Consumed Steam | G45: =Steam!F114 -> 0 | H45: CO2-e (metric tons)
B47: Total organization Emissions
B48: Total Scope 1 & Location-Based Scope 2 | G48: =SUM(G33:G37,G40:G41) -> 0 | H48: CO2-e (metric tons)
B49: Total Scope 1 & Market-Based Scope 2 | G49: =SUM(G33:G37,G44:G45) -> 0 | H49: CO2-e (metric tons)
B51: Reductions
B52: Offsets | G52: =Offsets!C25 -> 0 | H52: CO2-e (metric tons)
B54: Net Scope 1 and 2 Location-Based Emissions | G54: =G48-G52 -> 0 | H54: CO2-e (metric tons)
B55: Net Scope 1 and 2 Market-Based Emissions | G55: =G49-G51 -> 0 | H55: CO2-e (metric tons)
B57: Scope 3 Emissions
B58: Employee Business Travel | G58: ='Business Travel'!D163 -> 0 | H58: CO2-e (metric tons)
B59: Employee Commuting | G59: =Commuting!D121 -> 0 | H59: CO2-e (metric tons)
B60: Product Transport | G60: ='Product Transport'!D112 -> 0 | H60: CO2-e (metric tons)
B62: Required Supplemental Information
B63: Biomass CO2 Emissions from Stationary Sources | G63: ='Stationary Combustion'!E97 -> 0 | H63: CO2-e (metric tons)
B64: Biomass CO2 Emissions from Mobile Sources | G64: ='Mobile Sources'!E179 -> 0 | H64: CO2-e (metric tons)

Sheet Stationary Combustion
A3: Scope 1 Emissions from Stationary Combustion Sources
A5: Guidance
A6: (A) Enter annual data for each combustion unit, facility, or site (by fuel type) in ORANGE cells on Table 1. Example entry is shown in first row (GREEN Italics).
A7: - Select "Fuel Combusted" from drop down box.
A8: - Enter "Quantity Combusted" and choose the appropriate units from the drop down box in the unit column. If it's necessary to convert units, common heat contents can be found on the "Heat Content" sheet and unit conversions on the "Unit Conversion" sheet.
A9: (B) If fuel is consumed in a facility but stationary fuel consumption data are not available, an estimate should be made for completeness. See the "Items to Note" section of the Help sheet for suggested estimation approaches.
A10: (C) Biomass CO2 emissions are not reported in the total emissions, but are reported separately at the bottom of the sheet.
A12: Table 1. Stationary Source Fuel Combustion
A13: Source | B13: Source | C13: Source | D13: Fuel | E13: Quantity | F13: Units
A14: ID | B14: Description | C14: Area (sq ft) | D14: Combusted | E14: Combusted
A15: BLR-012 | B15: East Power Plant | C15: 12517 | D15: Natural Gas | E15: 10000 | F15: MMBtu | U15: =IF(D15="","",VLOOKUP(D15,DropDown!$Q$2:$R$12,2,FALSE)) -> Gas
U16: =IF(D16="","",VLOOKUP(D16,DropDown!$Q$2:$R$12,2,FALSE)) -> 
U17: =IF(D17="","",VLOOKUP(D17,DropDown!$Q$2:$R$12,2,FALSE)) -> 
U18: =IF(D18="","",VLOOKUP(D18,DropDown!$Q$2:$R$12,2,FALSE)) -> 
U19: =IF(D19="","",VLOOKUP(D19,DropDown!$Q$2:$R$12,2,FALSE)) -> 
U20: =IF(D20="","",VLOOKUP(D20,DropDown!$Q$2:$R$12,2,FALSE)) -> 
U21: =IF(D21="","",VLOOKUP(D21,DropDown!$Q$2:$R$12,2,FALSE)) -> 
U22: =IF(D22="","",VLOOKUP(D22,DropDown!$Q$2:$R$12,2,FALSE)) -> 
U23: =IF(D23="","",VLOOKUP(D23,DropDown!$Q$2:$R$12,2,FALSE)) -> 
U24: =IF(D24="","",VLOOKUP(D24,DropDown!$Q$2:$R$12,2,FALSE)) -> 
U25: =IF(D25="","",VLOOKUP(D25,DropDown!$Q$2:$R$12,2,FALSE)) -> 
U26: =IF(D26="","",VLOOKUP(D26,DropDown!$Q$2:$R$12,2,FALSE)) -> 
U27: =IF(D27="","",VLOOKUP(D27,DropDown!$Q$2:$R$12,2,FALSE)) -> 
U28: =IF(D28="","",VLOOKUP(D28,DropDown!$Q$2:$R$12,2,FALSE)) -> 
U29: =IF(D29="","",VLOOKUP(D29,DropDown!$Q$2:$R$12,2,FALSE)) -> 
U30: =IF(D30="","",VLOOKUP(D30,DropDown!$Q$2:$R$12,2,FALSE)) -> 
U31: =IF(D31="","",VLOOKUP(D31,DropDown!$Q$2:$R$12,2,FALSE)) -> 
U32: =IF(D32="","",VLOOKUP(D32,DropDown!$Q$2:$R$12,2,FALSE)) -> 
U33: =IF(D33="","",VLOOKUP(D33,DropDown!$Q$2:$R$12,2,FALSE)) -> 
U34: =IF(D34="","",VLOOKUP(D34,DropDown!$Q$2:$R$12,2,FALSE)) -> 
U35: =IF(D35="","",VLOOKUP(D35,DropDown!$Q$2:$R$12,2,FALSE)) -> 
U36: =IF(D36="","",VLOOKUP(D36,DropDown!$Q$2:$R$12,2,FALSE)) -> 
U37: =IF(D37="","",VLOOKUP(D37,DropDown!$Q$2:$R$12,2,FALSE)) -> 
U38: =IF(D38="","",VLOOKUP(D38,DropDown!$Q$2:$R$12,2,FALSE)) -> 
U39: =IF(D39="","",VLOOKUP(D39,DropDown!$Q$2:$R$12,2,FALSE)) -> 
U40: =IF(D40="","",VLOOKUP(D40,DropDown!$Q$2:$R$12,2,FALSE)) -> 
U41: =IF(D41="","",VLOOKUP(D41,DropDown!$Q$2:$R$12,2,FALSE)) -> 
U42: =IF(D42="","",VLOOKUP(D42,DropDown!$Q$2:$R$12,2,FALSE)) -> 
U43: =IF(D43="","",VLOOKUP(D43,DropDown!$Q$2:$R$12,2,FALSE)) -> 
U44: =IF(D44="","",VLOOKUP(D44,DropDown!$Q$2:$R$12,2,FALSE)) -> 
U45: =IF(D45="","",VLOOKUP(D45,DropDown!$Q$2:$R$12,2,FALSE)) -> 
U46: =IF(D46="","",VLOOKUP(D46,DropDown!$Q$2:$R$12,2,FALSE)) -> 
U47: =IF(D47="","",VLOOKUP(D47,DropDown!$Q$2:$R$12,2,FALSE)) -> 
U48: =IF(D48="","",VLOOKUP(D48,DropDown!$Q$2:$R$12,2,FALSE)) -> 
U49: =IF(D49="","",VLOOKUP(D49,DropDown!$Q$2:$R$12,2,FALSE)) -> 
U50: =IF(D50="","",VLOOKUP(D50,DropDown!$Q$2:$R$12,2,FALSE)) -> 
U51: =IF(D51="","",VLOOKUP(D51,DropDown!$Q$2:$R$12,2,FALSE)) -> 
U52: =IF(D52="","",VLOOKUP(D52,DropDown!$Q$2:$R$12,2,FALSE)) -> 
U53: =IF(D53="","",VLOOKUP(D53,DropDown!$Q$2:$R$12,2,FALSE)) -> 
U54: =IF(D54="","",VLOOKUP(D54,DropDown!$Q$2:$R$12,2,FALSE)) -> 
U55: =IF(D55="","",VLOOKUP(D55,DropDown!$Q$2:$R$12,2,FALSE)) -> 
U56: =IF(D56="","",VLOOKUP(D56,DropDown!$Q$2:$R$12,2,FALSE)) -> 
U57: =IF(D57="","",VLOOKUP(D57,DropDown!$Q$2:$R$12,2,FALSE)) -> 
U58: =IF(D58="","",VLOOKUP(D58,DropDown!$Q$2:$R$12,2,FALSE)) -> 
A60: GHG Emissions
A62: Total Organization-Wide Stationary Source Combustion by Fuel Type
A63: Fuel Type | C63: Quantity | D63: Units
C64: Combusted
A65: Anthracite Coal | C65: =SUMIFS($E$16:$E$58,$D$16:$D$58,$A65,$F$16:$F$58,"short ton")+(SUMIFS($E$16:$E$58,$D$16:$D$58,$A65,$F$16:$F$58,"MMBtu")*'Heat Content'!$D$14) -> 0 | D65: short tons
A66: Bituminous Coal | C66: =SUMIFS($E$16:$E$58,$D$16:$D$58,$A66,$F$16:$F$58,"short ton")+(SUMIFS($E$16:$E$58,$D$16:$D$58,$A66,$F$16:$F$58,"MMBtu")*'Heat Content'!$D$15) -> 0 | D66: short tons
A67: Sub-bituminous Coal | C67: =SUMIFS($E$16:$E$58,$D$16:$D$58,$A67,$F$16:$F$58,"short ton")+(SUMIFS($E$16:$E$58,$D$16:$D$58,$A67,$F$16:$F$58,"MMBtu")*'Heat Content'!$D$16) -> 0 | D67: short tons
A68: Lignite Coal | C68: =SUMIFS($E$16:$E$58,$D$16:$D$58,$A68,$F$16:$F$58,"short ton")+(SUMIFS($E$16:$E$58,$D$16:$D$58,$A68,$F$16:$F$58,"MMBtu")*'Heat Content'!$D$18) -> 0 | D68: short tons
A69: Natural Gas | C69: =SUMIFS($E$16:$E$58,$D$16:$D$58,$A69,$F$16:$F$58,"scf")+(SUMIFS($E$16:$E$58,$D$16:$D$58,$A69,$F$16:$F$58,"MMBtu")*'Heat Content'!$D$7)+(SUMIFS($E$16:$E$58,$D$16:$D$58,$A69,$F$16:$F$58,"Therm")*'Heat Content'!$D$9) -> 0 | D69: scf
A70: Distillate Fuel Oil No. 2 | C70: =SUMIFS($E$16:$E$58,$D$16:$D$58,$A70,$F$16:$F$58,"gallons")+(SUMIFS($E$16:$E$58,$D$16:$D$58,$A70,$F$16:$F$58,"MMBtu")*'Heat Content'!$D$21) -> 0 | D70: gallons
A71: Residual Fuel Oil No. 6 | C71: =SUMIFS($E$16:$E$58,$D$16:$D$58,$A71,$F$16:$F$58,"gallons")+(SUMIFS($E$16:$E$58,$D$16:$D$58,$A71,$F$16:$F$58,"MMBtu")*'Heat Content'!$D$22) -> 0 | D71: gallons
A72: Kerosene | C72: =SUMIFS($E$16:$E$58,$D$16:$D$58,$A72,$F$16:$F$58,"gallons")+(SUMIFS($E$16:$E$58,$D$16:$D$58,$A72,$F$16:$F$58,"MMBtu")*'Heat Content'!$D$23) -> 0 | D72: gallons
A73: Liquefied Petroleum Gases (LPG) | C73: =SUMIFS($E$16:$E$58,$D$16:$D$58,$A73,$F$16:$F$58,"gallons")+(SUMIFS($E$16:$E$58,$D$16:$D$58,$A73,$F$16:$F$58,"MMBtu")*'Heat Content'!$D$24) -> 0 | D73: gallons
A74: Wood and Wood Residuals | C74: =SUMIFS($E$16:$E$58,$D$16:$D$58,$A74,$F$16:$F$58,"short ton")+(SUMIFS($E$16:$E$58,$D$16:$D$58,$A74,$F$16:$F$58,"MMBtu")*'Heat Content'!$D$20) -> 0 | D74: short tons
A75: Landfill Gas | C75: =SUMIFS($E$16:$E$58,$D$16:$D$58,$A75,$F$16:$F$58,"scf")+(SUMIFS($E$16:$E$58,$D$16:$D$58,$A75,$F$16:$F$58,"MMBtu")*'Heat Content'!$D$26)+(SUMIFS($E$16:$E$58,$D$16:$D$58,$A75,$F$16:$F$58,"Therm")*'Heat Content'!$D$26/10) -> 0 | D75: scf
A77: Total Organization-Wide CO2, CH4 and N2O Emissions from Stationary Source Fuel Combustion
A78: Fuel Type | C78: CO2 (kg) | D78: CH4 (g) | E78: N2O (g)
A79: Anthracite Coal | C79: =$C65*VLOOKUP($A79,Stationary_Fuel_Fctrs_unit,5,FALSE) -> 0 | D79: =$C65*VLOOKUP($A79,Stationary_Fuel_Fctrs_unit,6,FALSE) -> 0 | E79: =$C65*VLOOKUP($A79,Stationary_Fuel_Fctrs_unit,7,FALSE) -> 0
A80: Bituminous Coal | C80: =$C66*VLOOKUP($A80,Stationary_Fuel_Fctrs_unit,5,FALSE) -> 0 | D80: 0 | E80: 0
A81: Sub-bituminous Coal | C81: 0 | D81: 0 | E81: 0
A82: Lignite Coal | C82: 0 | D82: 0 | E82: 0
A83: Natural Gas | C83: 0 | D83: 0 | E83: 0
A84: Distillate Fuel Oil No. 2 | C84: 0 | D84: 0 | E84: 0
A85: Residual Fuel Oil No. 6 | C85: 0 | D85: =$C71*VLOOKUP($A85,Stationary_Fuel_Fctrs_unit,6,FALSE) -> 0 | E85: =$C71*VLOOKUP($A85,Stationary_Fuel_Fctrs_unit,7,FALSE) -> 0
A86: Kerosene | C86: 0 | D86: 0 | E86: 0
A87: Liquefied Petroleum Gases (LPG) | C87: 0 | D87: 0 | E87: 0
A88: Total Fossil Fuel Emissions | C88: =SUM(C79:C87) -> 0 | D88: =SUM(D79:D87) -> 0 | E88: =SUM(E79:E87) -> 0
A89: Wood and Wood Residuals | C89: =$C74*VLOOKUP($A89,Stationary_Fuel_Fctrs_unit,5,FALSE) -> 0 | D89: =$C74*VLOOKUP($A89,Stationary_Fuel_Fctrs_unit,6,FALSE) -> 0 | E89: =$C74*VLOOKUP($A89,Stationary_Fuel_Fctrs_unit,7,FALSE) -> 0
A90: Landfill Gas | C90: =$C75*VLOOKUP(A90,Stationary_Fuel_Fctrs_unit,5,FALSE) -> 0 | D90: =$C75*VLOOKUP($A90,Stationary_Fuel_Fctrs_unit,6,FALSE) -> 0 | E90: =$C75*VLOOKUP($A90,Stationary_Fuel_Fctrs_unit,7,FALSE) -> 0
A91: Total Non-Fossil Fuel Emissions | C91: =SUM(C89:C90) -> 0 | D91: =SUM(D89:D90) -> 0 | E91: =SUM(E89:E90) -> 0
A92: Total Emissions for all Fuels | C92: =C88+C91 -> 0 | D92: =D88+D91 -> 0 | E92: =E88+E91 -> 0
A95: Total CO2 Equivalent Emissions (metric tons) - Stationary Combustion | E95: =(C88+(D88/1000*CH4_GWP)+(E88/1000*N2O_GWP)+(D91/1000*CH4_GWP)+(E91/1000*N2O_GWP))/1000 -> 0
A97: Total Biomass CO2 Equivalent Emissions (metric tons) - Stationary Combustion | E97: =(C91/1000) -> 0

Sheet Mobile Sources
A3: Scope 1 Emissions from Mobile Sources
A5: Guidance
A6: (A) Enter annual data for each vehicle or group of vehicles (grouped by vehicle type, vehicle year, and fuel type) in ORANGE cells in Table 1. Example entry is shown in first row (GREEN Italics). Only enter vehicles owned or leased by your organization on this sheet. All other vehicle use such as employee commuting or business travel is considered a scope 3 emissions source and should be reported in the corresponding sheets.
A7: - Select "Vehicle Type" from drop down box (closest type available).
A8: - Enter "Fuel Usage" in appropriate units (units appear when vehicle type is selected).
B9: - If mileage or fuel usage is unknown, estimate using approximate fuel economy values (see Reference Table below).
A10: (B) When using biofuels, typically the biofuel (biodiesel or ethanol) is mixed with a petroleum fuel (diesel or gasoline) for use in vehicles. Enter the biodiesel and ethanol percentages of the fuel if known, or leave default values.
C12: Biodiesel Percent: | D12: 20 | E12: %
C13: Ethanol Percent: | D13: 85 | E13: %
A14: (C) Biomass CO2 emissions from biodiesel and ethanol are not reported in the total emissions, but are reported separately at the bottom of the sheet.
A16: Table 1. Mobile Source Fuel Combustion and Miles Traveled
A17: Source | B17: Source | C17: Vehicle | D17: Vehicle | E17: Fuel | F17: Units | G17: Miles
A18: ID | B18: Description | C18: Type | D18: Year | E18: Usage | G18: Traveled
A19: Fleet-012 | B19: HQ Fleet | C19: Diesel Heavy-Duty Vehicles | D19: 1990 | E19: 500 | F19: =IF($C19="","",IF($C19="CNG Buses", "scf", IF($C19="CNG Heavy-Duty Vehicles", "scf", IF($C19="CNG Light-Duty Vehicles","scf","gal")))) -> gal | G19: =E19*E60 -> 3600
F20: =IF($C20="","",IF($C20="CNG Buses", "scf", IF($C20="CNG Heavy-Duty Vehicles", "scf", IF($C20="CNG Light-Duty Vehicles","scf","gal")))) -> 
F21: =IF($C21="","",IF($C21="CNG Buses", "scf", IF($C21="CNG Heavy-Duty Vehicles", "scf", IF($C21="CNG Light-Duty Vehicles","scf","gal")))) -> 
F42: =IF($C42="","",IF($C42="CNG Buses", "scf", IF($C42="CNG Heavy-Duty Vehicles", "scf", IF($C42="CNG Light-Duty Vehicles","scf","gal")))) -> 
A56: Reference Table: Average Fuel Economy by Vehicle Type
A57: Vehicle Type | D57: Average Fuel Economy (mpg)
A58: Passenger Cars | E58: 23.3
A59: Motorcycles | E59: 43.5
A60: Diesel Buses (Diesel Heavy-Duty Vehicles) | E60: 7.2
A61: Other 2-axle, 4-Tire Vehicles | E61: 17.1
A62: Single unit 2-Axle 6-Tire or More Trucks | E62: 7.3
A63: Combination Trucks | E63: 5.8
A65: GHG Emissions
A67: Total Organization-Wide Mobile Source Fuel Usage and CO2 Emissions (Highway and Non-Highway Vehicles)
A68: Fuel Type | D68: Fuel Usage | E68: Units | F68: CO2
F69: (kg)
A70: Motor Gasoline | D70: =SUMIF($C$20:$C$54,"Gasoline*",$E$20:$E$54)+SUMIF($C$20:$C$54,"Other Gasoline*",$E$20:$E$54) -> 0 | E70: gallons | F70: =IF($D70="","",Mobile_gas_CO2fctr*$D70) -> 0
A71: Diesel Fuel | D71: =SUMIF($C$20:$C$54,"Diesel*",$E$20:$E$54)+SUMIF($C$20:$C$54,"Other Diesel*",$E$20:$E$54) -> 0 | E71: gallons | F71: =IF($D71="","",Mobile_diesel_CO2fctr*$D71) -> 0
A72: Residual Fuel Oil | D72: =SUMIF($C$20:$C$54,"*Residual*",$E$20:$E$54) -> 0 | E72: gallons | F72: =IF($D72="","",Mobile_FuelOil_CO2fctr*$D72) -> 0
A73: Aviation Gasoline | D73: =SUMIF($C$20:$C$54,"Aviation Gasoline*",$E$20:$E$54) -> 0 | E73: gallons | F73: =IF($D73="","",Mobile_Avgas_CO2fctr*$D73) -> 0
A74: Kerosene-Type Jet Fuel | D74: =SUMIF($C$20:$C$54,"*Jet*",$E$20:$E$54) -> 0 | E74: gallons | F74: =IF($D74="","",Mobile_Jet_Fuel_CO2fctr*$D74) -> 0
A75: Liquefied Petroleum Gas (LPG) | D75: =SUMIF($C$20:$C$54,"*LPG*",$E$20:$E$54) -> 0 | E75: gallons | F75: =IF($D75="","",Mobile_LPG_CO2fctr*$D75) -> 0
A76: Ethanol (100%) | D76: =SUMIF($C$20:$C$54,"*Ethanol*",$E$20:$E$54) -> 0 | E76: gallons | F76: =IF(D76="","",Mobile_gas_CO2fctr*(100-$D$13)/100*$D76) -> 0
A77: Biodiesel (100%) | D77: =SUMIF($C$20:$C$54,"Biodiesel*",$E$20:$E$54) -> 0 | E77: gallons | F77: =IF(D77="","",Mobile_diesel_CO2fctr*(100-$D$12)/100*$D77) -> 0
A78: Liquefied Natural Gas (LNG) | D78: =SUMIF($C$20:$C$54,"*LNG*",$E$20:$E$54) -> 0 | E78: gallons | F78: =IF($D78="","",Mobile_LNG_CO2fctr*$D78) -> 0
A79: Compressed Natural Gas (CNG) | D79: =SUMIF($C$20:$C$54,"*CNG*",$E$20:$E$54) -> 0 | E79: scf | F79: =IF($D79="","",Mobile_CNG_CO2fctr*$D79) -> 0
A81: Total Organization-Wide Highway Gasoline Mobile Source Mileage and CH4/N2O Emissions
A82: Vehicle Type | C82: Vehicle Year | D82: Mileage (miles) | E82: CH4 (g) | F82: N2O (g)
A83: Gasoline Passenger Cars | C83: 1984-1993 | D83: =SUMPRODUCT(--($C$20:$C$54=$A$83),--($D$20:$D$54<=1993),--($G$20:$G$54)) -> 0 | E83: =VLOOKUP(C83,Gas_Pass_Car_CH4_N2O, 2,FALSE)*D83 -> 0 | F83: =VLOOKUP(C83,Gas_Pass_Car_CH4_N2O, 3,FALSE)*D83 -> 0
C84: 1994 | D84: =SUMPRODUCT(--($C$20:$C$54=$A$83),--($D$20:$D$54=$C84),--($G$20:$G$54)) -> 0 | E84: =VLOOKUP(C84,Gas_Pass_Car_CH4_N2O, 2,FALSE)*D84 -> 0 | F84: 0
C85: 1995 | D85: 0 | E85: 0 | F85: 0
C86: 1996 | D86: 0 | E86: 0 | F86: 0
C87: 1997 | D87: 0 | E87: 0 | F87: 0
C88: 1998 | D88: 0 | E88: 0 | F88: 0
C89: 1999 | D89: 0 | E89: 0 | F89: 0
C90: 2000 | D90: 0 | E90: 0 | F90: 0
C91: 2001 | D91: 0 | E91: 0 | F91: 0
C92: 2002 | D92: 0 | E92: 0 | F92: 0
C93: 2003 | D93: 0 | E93: 0 | F93: 0
C94: 2004 | D94: 0 | E94: 0 | F94: 0
C95: 2005 | D95: 0 | E95: =VLOOKUP(C95,Gas_Pass_Car_CH4_N2O, 2,FALSE)*D95 -> 0 | F95: =VLOOKUP(C95,Gas_Pass_Car_CH4_N2O, 3,FALSE)*D95 -> 0
C96: 2006 | D96: 0 | E96: =VLOOKUP(C96,Gas_Pass_Car_CH4_N2O, 2,FALSE)*D96 -> 0 | F96: =VLOOKUP(C96,Gas_Pass_Car_CH4_N2O, 3,FALSE)*D96 -> 0
C97: 2007 | D97: 0 | E97: =VLOOKUP(C97,Gas_Pass_Car_CH4_N2O, 2,FALSE)*D97 -> 0 | F97: =VLOOKUP(C97,Gas_Pass_Car_CH4_N2O, 3,FALSE)*D97 -> 0
C98: 2008 | D98: 0 | E98: =VLOOKUP(C98,Gas_Pass_Car_CH4_N2O, 2,FALSE)*D98 -> 0 | F98: =VLOOKUP(C98,Gas_Pass_Car_CH4_N2O, 3,FALSE)*D98 -> 0
C99: 2009-present | D99: =SUMPRODUCT(--($C$20:$C$54=$A$83),--($D$20:$D$54>=2009),--($G$20:$G$54))+SUMPRODUCT(--($C$20:$C$54=$A$83),--($D$20:$D$54=""),--($G$20:$G$54)) -> 0 | E99: =VLOOKUP(C99,Gas_Pass_Car_CH4_N2O, 2,FALSE)*D99 -> 0 | F99: 0
A100: Gasoline Light-Duty Trucks | C100: 1987-1993 | D100: =SUMPRODUCT(--($C$20:$C$54=$A$100),--($D$20:$D$54<=1993),--($G$20:$G$54)) -> 0 | E100: =VLOOKUP(C100,Gas_Lt_Duty_Trucks_CH4_N2O, 2,FALSE)*D100 -> 0 | F100: =VLOOKUP(C100,Gas_Lt_Duty_Trucks_CH4_N2O, 3,FALSE)*D100 -> 0
A101: (Vans, Pickup Trucks, SUVs) | C101: 1994 | D101: =SUMPRODUCT(--($C$20:$C$54=$A$100),--($D$20:$D$54=$C101),--($G$20:$G$54)) -> 0 | E101: 0 | F101: 0
C102: 1995 | D102: 0 | E102: 0 | F102: 0
C103: 1996 | D103: 0 | E103: 0 | F103: 0
C104: 1997 | D104: 0 | E104: 0 | F104: 0
C105: 1998 | D105: 0 | E105: 0 | F105: 0
C106: 1999 | D106: 0 | E106: 0 | F106: 0
C107: 2000 | D107: 0 | E107: 0 | F107: 0
C108: 2001 | D108: 0 | E108: 0 | F108: 0
C109: 2002 | D109: 0 | E109: 0 | F109: 0
C110: 2003 | D110: 0 | E110: 0 | F110: 0
C111: 2004 | D111: =SUMPRODUCT(--($C$20:$C$54=$A$100),--($D$20:$D$54=$C111),--($G$20:$G$54)) -> 0 | E111: 0 | F111: 0
C112: 2005 | D112: =SUMPRODUCT(--($C$20:$C$54=$A$100),--($D$20:$D$54=$C112),--($G$20:$G$54)) -> 0 | E112: =VLOOKUP(C112,Gas_Lt_Duty_Trucks_CH4_N2O, 2,FALSE)*D112 -> 0 | F112: =VLOOKUP(C112,Gas_Lt_Duty_Trucks_CH4_N2O, 3,FALSE)*D112 -> 0
C113: 2006 | D113: =SUMPRODUCT(--($C$20:$C$54=$A$100),--($D$20:$D$54=$C113),--($G$20:$G$54)) -> 0 | E113: =VLOOKUP(C113,Gas_Lt_Duty_Trucks_CH4_N2O, 2,FALSE)*D113 -> 0 | F113: =VLOOKUP(C113,Gas_Lt_Duty_Trucks_CH4_N2O, 3,FALSE)*D113 -> 0
C114: 2007 | D114: =SUMPRODUCT(--($C$20:$C$54=$A$100),--($D$20:$D$54=$C114),--($G$20:$G$54)) -> 0 | E114: =VLOOKUP(C114,Gas_Lt_Duty_Trucks_CH4_N2O, 2,FALSE)*D114 -> 0 | F114: =VLOOKUP(C114,Gas_Lt_Duty_Trucks_CH4_N2O, 3,FALSE)*D114 -> 0
C115: 2008 | D115: =SUMPRODUCT(--($C$20:$C$54=$A$100),--($D$20:$D$54=$C115),--($G$20:$G$54)) -> 0 | E115: =VLOOKUP(C115,Gas_Lt_Duty_Trucks_CH4_N2O, 2,FALSE)*D115 -> 0 | F115: =VLOOKUP(C115,Gas_Lt_Duty_Trucks_CH4_N2O, 3,FALSE)*D115 -> 0
C116: 2009-present | D116: =SUMPRODUCT(--($C$20:$C$54=$A$100),--($D$20:$D$54>=2009),--($G$20:$G$54))+SUMPRODUCT(--($C$20:$C$54=$A$100),--($D$20:$D$54=""),--($G$20:$G$54)) -> 0 | E116: =VLOOKUP(C116,Gas_Lt_Duty_Trucks_CH4_N2O, 2,FALSE)*D116 -> 0 | F116: 0
A117: Gasoline Heavy-Duty Vehicles | C117: 1985-1986 | D117: =SUMPRODUCT(--($C$20:$C$54=$A$117),--($D$20:$D$54<=1986),--($G$20:$G$54)) -> 0 | E117: =VLOOKUP(C117,Gas_Heavy_Duty_CH4_N2O, 2,FALSE)*D117 -> 0 | F117: =VLOOKUP(C117,Gas_Heavy_Duty_CH4_N2O, 3,FALSE)*D117 -> 0
C118: 1987 | D118: =SUMPRODUCT(--($C$20:$C$54=$A$117),--($D$20:$D$54=$C118),--($G$20:$G$54)) -> 0 | E118: 0 | F118: 0
C119: 1988-1989 | D119: =SUMPRODUCT(--($C$20:$C$54=$A$117),--($D$20:$D$54>=1988),--($D$20:$D$54<=1989),--($G$20:$G$54)) -> 0 | E119: =VLOOKUP(C119,Gas_Heavy_Duty_CH4_N2O, 2,FALSE)*D119 -> 0 | F119: 0
C120: 1990-1995 | D120: =SUMPRODUCT(--($C$20:$C$54=$A$117),--($D$20:$D$54>=1990),--($D$20:$D$54<=1995),--($G$20:$G$54)) -> 0 | E120: 0 | F120: 0
C121: 1996 | D121: 0 | E121: 0 | F121: 0
C122: 1997 | D122: 0 | E122: 0 | F122: 0
C123: 1998 | D123: 0 | E123: 0 | F123: 0
C124: 1999 | D124: 0 | E124: 0 | F124: 0
C125: 2000 | D125: 0 | E125: 0 | F125: 0
C126: 2001 | D126: 0 | E126: 0 | F126: 0
C127: 2002 | D127: 0 | E127: 0 | F127: 0
C128: 2003 | D128: 0 | E128: 0 | F128: 0
C129: 2004 | D129: 0 | E129: 0 | F129: 0
C130: 2005 | D130: 0 | E130: =VLOOKUP(C130,Gas_Heavy_Duty_CH4_N2O, 2,FALSE)*D130 -> 0 | F130: =VLOOKUP(C130,Gas_Heavy_Duty_CH4_N2O, 3,FALSE)*D130 -> 0
C131: 2006 | D131: 0 | E131: =VLOOKUP(C131,Gas_Heavy_Duty_CH4_N2O, 2,FALSE)*D131 -> 0 | F131: =VLOOKUP(C131,Gas_Heavy_Duty_CH4_N2O, 3,FALSE)*D131 -> 0
C132: 2007 | D132: 0 | E132: =VLOOKUP(C132,Gas_Heavy_Duty_CH4_N2O, 2,FALSE)*D132 -> 0 | F132: =VLOOKUP(C132,Gas_Heavy_Duty_CH4_N2O, 3,FALSE)*D132 -> 0
C133: 2008 | D133: 0 | E133: =VLOOKUP(C133,Gas_Heavy_Duty_CH4_N2O, 2,FALSE)*D133 -> 0 | F133: =VLOOKUP(C133,Gas_Heavy_Duty_CH4_N2O, 3,FALSE)*D133 -> 0
C134: 2009-present | D134: =SUMPRODUCT(--($C$20:$C$54=$A$117),--($D$20:$D$54>=2009),--($G$20:$G$54))+SUMPRODUCT(--($C$20:$C$54=$A$117),--($D$20:$D$54=""),--($G$20:$G$54)) -> 0 | E134: =VLOOKUP(C134,Gas_Heavy_Duty_CH4_N2O, 2,FALSE)*D134 -> 0 | F134: =VLOOKUP(C134,Gas_Heavy_Duty_CH4_N2O, 3,FALSE)*D134 -> 0
A135: Gasoline Motorcycles | C135: 1960-1995 | D135: =SUMPRODUCT(--($C$20:$C$54=$A$117),--($D$20:$D$54=$C135),--($G$20:$G$54)) -> 0 | E135: =VLOOKUP(C135,Gas_Motorcycle_CH4_N2O, 2,FALSE)*D135 -> 0 | F135: =VLOOKUP(C135,Gas_Motorcycle_CH4_N2O, 3,FALSE)*D135 -> 0
C136: 1996-present | D136: =SUMPRODUCT(--($C$20:$C$54=$A$117),--($D$20:$D$54>=2009),--($G$20:$G$54))+SUMPRODUCT(--($C$20:$C$54=$A$117),--($D$20:$D$54=""),--($G$20:$G$54)) -> 0 | E136: =VLOOKUP(C136,Gas_Motorcycle_CH4_N2O, 2,FALSE)*D136 -> 0 | F136: =VLOOKUP(C136,Gas_Motorcycle_CH4_N2O, 3,FALSE)*D136 -> 0
A138: Total Organization-Wide Highway Non-Gasoline Mobile Source Mileage and CH4/N2O Emissions
A139: Vehicle Type | C139: Vehicle Year | D139: Mileage (miles) | E139: CH4 (g) | F139: N2O (g)
A140: Diesel Passenger Cars | C140: 1960-1982 | D140: =SUMPRODUCT(--($C$20:$C$54=$A$140),--($D$20:$D$54<=1982),--($G$20:$G$54)) -> 0 | E140: =VLOOKUP($C140,Diesel_pass_CH4_N2O, 2,FALSE)*$D140 -> 0 | F140: =VLOOKUP($C140,Diesel_pass_CH4_N2O, 3,FALSE)*$D140 -> 0
C141: 1983-present | D141: =SUMPRODUCT(--($C$20:$C$54=$A$140),--($D$20:$D$54>=1983),--($G$20:$G$54))+SUMPRODUCT(--($C$20:$C$54=$A$140),--($D$20:$D$54=""),--($G$20:$G$54)) -> 0 | E141: =VLOOKUP($C141,Diesel_pass_CH4_N2O, 2,FALSE)*$D141 -> 0 | F141: =VLOOKUP($C141,Diesel_pass_CH4_N2O, 3,FALSE)*$D141 -> 0
A142: Diesel Light-Duty Trucks | C142: 1960-1982 | D142: =SUMPRODUCT(--($C$20:$C$54=$A$142),--($D$20:$D$54<=1982),--($G$20:$G$54)) -> 0 | E142: =VLOOKUP($C142,Diesel_Lt_Trucks_CH4_N2O, 2,FALSE)*$D142 -> 0 | F142: =VLOOKUP($C142,Diesel_Lt_Trucks_CH4_N2O, 3,FALSE)*$D142 -> 0
C143: 1983-1995 | D143: =SUMPRODUCT(--($C$20:$C$54=$A$142),--($D$20:$D$54>=1983),--($D$20:$D$54<=1995),--($G$20:$G$54)) -> 0 | E143: =VLOOKUP($C143,Diesel_Lt_Trucks_CH4_N2O, 2,FALSE)*$D143 -> 0 | F143: =VLOOKUP($C143,Diesel_Lt_Trucks_CH4_N2O, 3,FALSE)*$D143 -> 0
C144: 1996-present | D144: =SUMPRODUCT(--($C$20:$C$54=$A$142),--($D$20:$D$54>=1996),--($G$20:$G$54))+SUMPRODUCT(--($C$20:$C$54=$A$142),--($D$20:$D$54=""),--($G$20:$G$54)) -> 0 | E144: =VLOOKUP($C144,Diesel_Lt_Trucks_CH4_N2O, 2,FALSE)*$D144 -> 0 | F144: =VLOOKUP($C144,Diesel_Lt_Trucks_CH4_N2O, 3,FALSE)*$D144 -> 0
A145: Diesel Medium- and Heavy-Duty Vehicles | C145: 1960-present | D145: =SUMPRODUCT(--($C$20:$C$54=$A$145),--($D$20:$D$54>=1960),--($G$20:$G$54))+SUMPRODUCT(--($C$20:$C$54=$A$145),--($D$20:$D$54=""),--($G$20:$G$54)) -> 0 | E145: =VLOOKUP($C145,Diesel_Heavy_Trucks_CH4_N2O, 2,FALSE)*$D145 -> 0 | F145: =VLOOKUP($C145,Diesel_Heavy_Trucks_CH4_N2O, 3,FALSE)*$D145 -> 0
A146: CNG Light-Duty Vehicles | D146: =SUMIF($C$20:$C$54,A146,$G$20:$G$54) -> 0 | E146: =CNG_Lt_Duty_CH4*$D146 -> 0 | F146: =CNG_Lt_Duty_N2O*$D146 -> 0
A147: CNG Heavy-Duty Vehicles | D147: =SUMIF($C$20:$C$54,A147,$G$20:$G$54) -> 0 | E147: =CNG_Heavy_Duty_CH4*D147 -> 0 | F147: =CNG_Heavy_Duty_N2O*D147 -> 0
A148: CNG Buses | D148: =SUMIF($C$20:$C$54,A148,$G$20:$G$54) -> 0 | E148: =CNG_Buses_CH4*D148 -> 0 | F148: =CNG_Buses_N2O*D148 -> 0
A149: LPG Light-Duty Vehicles | D149: =SUMIF($C$20:$C$54,"LPG Light-Duty*",$G$20:$G$54) -> 0 | E149: =LPG_Lt_Duty_CH4*D149 -> 0 | F149: =LPG_Lt_Duty_N2O*D149 -> 0
A150: LPG Medium- and Heavy-Duty Vehicles | D150: 0 | E150: =LPG_Heavy_Duty_CH4*D150 -> 0 | F150: =LPG_Heavy_Duty_N2O*D150 -> 0
A151: LNG Medium- and Heavy-Duty Vehicles | D151: 0 | E151: =LNG_Heavy_Duty_CH4*D151 -> 0 | F151: =LNG_Heavy_Duty_N2O*D151 -> 0
A152: Ethanol Light-Duty Vehicles | D152: =SUMIF($C$20:$C$54,A152,$G$20:$G$54) -> 0 | E152: =Ethanol_Lt_Duty_CH4*D152*(($D$13/100))+(1-($D$13/100))*D152*Gas_Present_Lt_Duty_CH4 -> 0 | F152: =Ethanol_Lt_Duty_N2O*D152*(($D$13/100))+(1-($D$13/100))*D152*Gas_Present_Lt_Duty_N2O -> 0
A153: Ethanol Medium- and Heavy-Duty Vehicles | D153: 0 | E153: =Ethanol_Heavy_Duty_CH4*D153*(($D$13/100))+(1-($D$13/100))*D153*Gas_Present_Heavy_Duty_CH4 -> 0 | F153: =Ethanol_Heavy_Duty_N2O*D153*(($D$13/100))+(1-($D$13/100))*D153*Gas_Present_Heavy_Duty_N2O -> 0
A154: Ethanol Buses | D154: 0 | E154: =Ethanol_Buses_CH4*D154*(($D$13/100))+(1-($D$13/100))*D154*Gas_Present_Heavy_Duty_CH4 -> 0 | F154: =Ethanol_Buses_N2O*D154*(($D$13/100))+(1-($D$13/100))*D154*Gas_Present_Heavy_Duty_N2O -> 0
A155: Biodiesel Light-Duty Vehicles | D155: =SUMIF($C$20:$C$54,A155,$G$20:$G$54) -> 0 | E155: =Biodiesel_Lt_Duty_CH4*D155*(($D$13/100))+(1-($D$13/100))*D155*Diesel_Present_Lt_Duty_CH4 -> 0 | F155: =Biodiesel_Lt_Duty_N2O*D155*(($D$13/100))+(1-($D$13/100))*D155*Diesel_Present_Lt_Duty_N2O -> 0
A156: Biodiesel Medium- and Heavy-Duty Vehicles | D156: =SUMIF($C$20:$C$54,A156,$G$20:$G$54) -> 0 | E156: =Biodiesel_Heavy_Duty_CH4*D156*(($D$13/100))+(1-($D$13/100))*D156*Diesel_Present_Heavy_Duty_CH4 -> 0 | F156: =Biodiesel_Heavy_Duty_N2O*D156*(($D$13/100))+(1-($D$13/100))*D156*Diesel_Present_Heavy_Duty_N2O -> 0
A157: Biodiesel Buses | D157: =SUMIF($C$20:$C$54,A157,$G$20:$G$54) -> 0 | E157: =Biodiesel_Buses_CH4*D157*(($D$13/100))+(1-($D$13/100))*D157*Diesel_Present_Heavy_Duty_CH4 -> 0 | F157: =Biodiesel_Buses_N2O*D157*(($D$13/100))+(1-($D$13/100))*D157*Diesel_Present_Heavy_Duty_N2O -> 0
A159: Total Organization-Wide Non-Highway Mobile Source Fuel Usage and CH4/N2O Emissions
A160: Vehicle Type | D160: Fuel Usage (gallons) | E160: CH4 (g) | F160: N2O (g)
A161: LPG Non-Road Vehicles | D161: =SUMIF($C$20:$C$54,A161,$E$20:$E$54) -> 0 | E161: =VLOOKUP(A161,Non_Highway_Vehicles_Ch4_N2O,2,FALSE)*D161 -> 0 | F161: =VLOOKUP(A161,Non_Highway_Vehicles_Ch4_N2O,3,FALSE)*D161 -> 0
A162: Residual Oil Ships and Boats | D162: =SUMIF($C$20:$C$54,A162,$E$20:$E$54) -> 0 | E162: 0 | F162: 0
A163: Diesel Ships and Boats | D163: =SUMIF($C$20:$C$54,A163,$E$20:$E$54) -> 0 | E163: 0 | F163: 0
A164: Gasoline Ships and Boats | D164: =SUMIF($C$20:$C$54,A164,$E$20:$E$54) -> 0 | E164: 0 | F164: 0
A165: Diesel Locomotives | D165: 0 | E165: 0 | F165: 0
A166: Gasoline Agricultural Equip. | D166: 0 | E166: 0 | F166: 0
A167: Diesel Agricultural Equip. | D167: 0 | E167: 0 | F167: 0
A168: Gasoline Construction Equip. | D168: 0 | E168: 0 | F168: 0
A169: Diesel Construction Equip. | D169: 0 | E169: 0 | F169: 0
A170: Jet Fuel Aircraft | D170: =SUMIF($C$20:$C$54,A170,$E$20:$E$54) -> 0 | E170: 0 | F170: 0
A171: Aviation Gasoline Aircraft | D171: 0 | E171: 0 | F171: 0
A172: Biodiesel Non-Road Vehicles | D172: =SUMIF($C$20:$C$54,A172,$E$20:$E$54) -> 0 | E172: =VLOOKUP(A172,Non_Highway_Vehicles_Ch4_N2O,2,FALSE)*D172 -> 0 | F172: =VLOOKUP(A172,Non_Highway_Vehicles_Ch4_N2O,3,FALSE)*D172 -> 0
A173: Other Diesel Non-Road Vehicles | D173: =SUMIF($C$20:$C$54,A173,$E$20:$E$54) -> 0 | E173: =VLOOKUP(A173,Non_Highway_Vehicles_Ch4_N2O,2,FALSE)*D173 -> 0 | F173: =VLOOKUP(A173,Non_Highway_Vehicles_Ch4_N2O,3,FALSE)*D173 -> 0
A174: Other Gasoline Non-Road Vehicles | D174: =SUMIF($C$20:$C$54,A174,$E$20:$E$54) -> 0 | E174: =VLOOKUP(A174,Non_Highway_Vehicles_Ch4_N2O,2,FALSE)*D174 -> 0 | F174: =VLOOKUP(A174,Non_Highway_Vehicles_Ch4_N2O,3,FALSE)*D174 -> 0
A177: Total CO2 Equivalent Emissions (metric tons) - Mobile Sources | E177: =((SUM($F$70:$F$79))+(SUM($E$83:$E$136)+SUM($E$140:$E$157)+SUM($E$161:$E$174))*CH4_GWP/1000+(SUM($F$83:$F$136)+SUM($F$140:$F$157)+SUM($F$161:$F$174))*N2O_GWP/1000)/1000 -> 0
A179: Total Biomass CO2 Equivalent Emissions (metric tons) - Mobile Sources | E179: =((Mobile_Ethanol_CO2fctr*$D$13/100*$D$76)+(Mobile_Biodiesel_CO2fctr*$D$12/100*$D$77))/1000 -> 0
A181: Notes:
A182: 1. Average mpg values from the U.S. Department of Transportation, Federal Highway Administration, Highway Statistics 2012 (Jan 2014), Table VM-1.

Sheet Refrigeration and AC
A3: Scope 1 Emissions from Refrigeration and Air Conditioning Equipment
A5: Guidance
A6: (A) HFC, PFC, CO2, and SF6 refrigerants from facilities and vehicles are required to be included in the GHG inventory. Ozone depleting substances, such as CFCs and HCFCs, are regulated internationally and are typically excluded from a GHG inventory or reported as a memo item.
A7: (B) Select ONE of the three options with which to estimate emissions. Options range from most preferred method (Option 1) to least preferred method (Option 3). If option 3, screening method, is used and emissions are determined to be significant when compared to other emission sources, then one of the other methods should be applied to calculate emissions more accurately.
A8: (C) Enter annual data in ORANGE cells as appropriate for the selected option.
A10: Option 1. Material Balance Method: Enter organization-wide total gases stored and transferred (by gas) in Table 1.
A11: - Choose the appropriate gas from the drop down menu.
A12: - Inventory Change = difference of gas stored in inventory from beginning to end of reporting period.
A13: (Includes only gas stored on-site (i.e. cylinders) and not gas contained within equipment).
A14: - Transferred Amount = gas purchased minus gas sold/disposed during reporting period.
A15: -- Gas purchased includes: Purchases for inventory, as part of equipment servicing (not from inventory),
A16: within purchased equipment, and gas returned to the site after off-site recycling.
A17: -- Gas sold/disposed includes: Returns to supplier, sales or disposals (including within equipment),
A18: and gas sent off-site for recycling, reclamation, or destruction.
A19: - Capacity Change = capacity of all units at beginning minus capacity of all units at end of reporting period.
A20: (can be assumed to be capacity of new units minus capacity of retired units).
A22: Table 1. Organization-Wide Refrigeration Gas CO2 Equivalent Emissions - Material Balance
A23: Gas | B23: Gas | C23: Inventory | D23: Transferred | E23: Capacity | F23: CO2 Equivalent
B24: GWP | C24: Change | D24: Amount | E24: Change | F24: Emissions
C25: (lb) | D25: (lb) | E25: (lb) | F25: (lb)
B26: =IF(A26="","",VLOOKUP(A26,GWP,2,FALSE)) ->  | F26: =IF(B26="", "",IF(($C26+$D26+$E26)*$B26<0,0,($C26+$D26+$E26)*$B26)) -> 
A38: Option 2. Material Balance Method (Simplified): Enter organization-wide total gases in units (by gas) in Table 2.
A39: - Choose the appropriate gas from the drop down menu.
A40: - New units are those installed during reporting period (do not include any data for new units pre-charged by
A41: supplier), disposed units were disposed of during the reporting period, and existing units are all others.
A42: - Charge/Recharge = gas added to units by organization or a contractor (do not include pre-charge by manufacturer).
A43: - Capacity = sum of the full capacity for all units (do not include new units pre-charged by manufacturer).
A44: - Amount recovered = total gas recovered from all retired units.
A46: Table 2. Organization-Wide Refrigeration Gas CO2 Equivalent Emissions - Simplified Material Balance
A47: Gas | B47: Gas | C47: New Units | E47: Existing Units | F47: Disposed Units | H47: CO2 Equivalent
B48: GWP | C48: Charge | D48: Capacity | E48: Recharge | F48: Capacity | G48: Recovered | H48: Emissions
C49: (lb) | D49: (lb) | E49: (lb) | F49: (lb) | G49: (lb) | H49: (lb)
B50: =IF(A50="","",VLOOKUP(A50,GWP,2,FALSE)) ->  | H50: =IF(B50="","",IF(($C50-$D50+$E50+$F50-$G50)*$B50<0,0,($C50-$D50+$E50+$F50-$G50)*$B50)) -> 
B51: =IF(A51="","",VLOOKUP(A51,GWP,2,FALSE)) ->  | H51: =IF(B51="","",IF(($C51-$D51+$E51+$F51-$G51)*$B51<0,0,($C51-$D51+$E51+$F51-$G51)*$B51)) -> 
A62: Option 3. Screening Method: Enter refrigerant information for each unit or group of units (by refrigerant) in Table 3.
A63: - Select the "Type of Equipment" (closest available) and "Gas" from the drop down box.
A64: - Enter amount of refrigerant added to new units by the organization (not pre-charged amount from manufacturer).
A65: - Enter refrigerant capacity (by equipment type and refrigerant) for all units operating and disposed during reporting period.
A66: -- For each unit added or removed during reporting period, multiply its capacity by a usage factor (0.0 to 1.0). For example, if the equipment was installed in June, multiply by 0.5 or (6/12), if it was installed in September you would multiply by 0.33 (4/12).
A67: -- If data entered for multiple units, sum the capacities or charge quantity for all like units.
A68: -- If capacity of unit(s) is not known, use upper value of default capacity provided in the Reference Table below.
A69: - See example entry in first row (GREEN Italics).
A71: Table 3. Source Level Refrigeration Gas CO2 Equivalent Emissions - Screening Method
A72: Source ID | B72: Type of Equipment | C72: Gas | D72: Gas GWP | E72: New Units | F72: Capacity | H72: CO2
E73: Charge | F73: Operating | G73: Disposed | H73: Equivalent
E74: (kg) | F74: Units | G74: Units | H74: Emissions
F75: (kg) | G75: (kg) | H75: (kg) | Q75: Formula Selection for Type of Equipment
A76: Bldg-012 | B76: Domestic Refrigeration | C76: CF4 | D76: =IF(ISNA(VLOOKUP($C76,$A$50:$B$60,2,FALSE)),"", VLOOKUP($C76,$A$50:$B$60,2,FALSE)) ->  | E76: 0 | F76: =0.5 -> 0.5 | G76: 0.25 | H76: 213.85 | Q76: Domestic Refrigeration | R76: Stand-Alone Commercial | S76: Medium/Large Commercial | T76: Transport Refrigeration | U76: Industrial Refrigeration | V76: Chillers | W76: Residential/Commercial A/C | X76: Car A/C Units | Y76: Light-Duty Truck A/C Units
D77: =IF(ISNA(VLOOKUP($C77,GWP,2,FALSE)),"", VLOOKUP($C77,GWP,2,FALSE)) ->  | H77: =IF($D77="","",SUM($Q77:$Y77)) ->  | Q77: =IF($B77=Q76,(($E77*(1/100)+$F77*(0.5/100)+$G77*(80/100)*(1-70/100))*$D77),0) -> 0 | R77: =IF($B77="Stand-Alone Commercial",(($E77*(3/100)+$F77*(15/100)+$G77*(80/100)*(1-70/100))*$D77),0) -> 0 | S77: =IF($B77="Medium/Large Commercial",(($E77*(3/100)+$F77*(35/100)+$G77*(100/100)*(1-70/100))*$D77),0) -> 0 | T77: =IF($B77="Transport Refrigeration",(($E77*(1/100)+$F77*(50/100)+$G77*(50/100)*(1-70/100))*$D77),0) -> 0 | U77: =IF($B77="Industrial Refrigeration",(($E77*(3/100)+$F77*(25/100)+$G77*(100/100)*(1-90/100))*$D77),0) -> 0 | V77: =IF($B77="Chillers",(($E77*(1/100)+$F77*(15/100)+$G77*(100/100)*(1-95/100))*$D77),0) -> 0 | W77: =IF($B77="Residential/Commercial A/C",(($E77*(1/100)+$F77*(10/100)+$G77*(80/100)*(1-80/100))*$D77),0) -> 0 | X77: =IF($B77="Car A/C Units",(($E77*(0.5/100)+$F77*(20/100)+$G77*(50/100)*(1-50/100))*$D77),0) -> 0 | Y77: =IF($B77="Light-Duty Truck A/C Units",(($E77*(0.5/100)+$F77*(20/100)+$G77*(50/100)*(1-50/100))*$D77),0) -> 0
H78: =IF($D78="","",SUM($Q78:$Y78)) ->  | Q78: =IF($B78="Domestic Refrigeration",(($E78*(1/100)+$F78*(0.5/100)+$G78*(80/100)*(1-70/100))*$D78),0) -> 0 | R78: =IF($B78="Stand-Alone Commercial",(($E78*(3/100)+$F78*(15/100)+$G78*(80/100)*(1-70/100))*$D78),0) -> 0 | S78: =IF($B78="Medium/Large Commercial",(($E78*(3/100)+$F78*(35/100)+$G78*(100/100)*(1-70/100))*$D78),0) -> 0 | T78: =IF($B78="Transport Refrigeration",(($E78*(1/100)+$F78*(50/100)+$G78*(50/100)*(1-70/100))*$D78),0) -> 0 | U78: =IF($B78="Industrial Refrigeration",(($E78*(3/100)+$F78*(25/100)+$G78*(100/100)*(1-90/100))*$D78),0) -> 0 | V78: =IF($B78="Chillers",(($E78*(1/100)+$F78*(15/100)+$G78*(100/100)*(1-95/100))*$D78),0) -> 0 | W78: =IF($B78="Residential/Commercial A/C",(($E78*(1/100)+$F78*(10/100)+$G78*(80/100)*(1-80/100))*$D78),0) -> 0 | X78: =IF($B78="Car A/C Units",(($E78*(0.5/100)+$F78*(20/100)+$G78*(50/100)*(1-50/100))*$D78),0) -> 0 | Y78: =IF($B78="Light-Duty Truck A/C Units",(($E78*(0.5/100)+$F78*(20/100)+$G78*(50/100)*(1-50/100))*$D78),0) -> 0
Q79: 0 | R79: 0 | S79: 0 | T79: 0 | U79: 0 | V79: 0 | W79: 0 | X79: 0 | Y79: 0
Q80: 0 | R80: 0 | S80: 0 | T80: 0 | U80: 0 | V80: 0 | W80: 0 | X80: 0 | Y80: 0
Q81: 0 | R81: 0 | S81: 0 | T81: 0 | U81: 0 | V81: 0 | W81: 0 | X81: 0 | Y81: 0
Q82: 0 | R82: 0 | S82: 0 | T82: 0 | U82: 0 | V82: 0 | W82: 0 | X82: 0 | Y82: 0
Q83: 0 | R83: 0 | S83: 0 | T83: 0 | U83: 0 | V83: 0 | W83: 0 | X83: 0 | Y83: 0
Q84: 0 | R84: 0 | S84: 0 | T84: 0 | U84: 0 | V84: 0 | W84: 0 | X84: 0 | Y84: 0
Q85: 0 | R85: 0 | S85: 0 | T85: 0 | U85: 0 | V85: 0 | W85: 0 | X85: 0 | Y85: 0
Q86: 0 | R86: 0 | S86: 0 | T86: 0 | U86: 0 | V86: 0 | W86: 0 | X86: 0 | Y86: 0
Q87: 0 | R87: 0 | S87: 0 | T87: 0 | U87: 0 | V87: 0 | W87: 0 | X87: 0 | Y87: 0
Q88: 0 | R88: 0 | S88: 0 | T88: 0 | U88: 0 | V88: 0 | W88: 0 | X88: 0 | Y88: 0
Q89: 0 | R89: 0 | S89: 0 | T89: 0 | U89: 0 | V89: 0 | W89: 0 | X89: 0 | Y89: 0
Q90: =IF($B90="Domestic Refrigeration",(($E90*(1/100)+$F90*(0.5/100)+$G90*(80/100)*(1-70/100))*$D90),0) -> 0 | R90: 0 | S90: 0 | T90: 0 | U90: 0 | V90: 0 | W90: 0 | X90: 0 | Y90: 0
Q91: 0 | R91: 0 | S91: 0 | T91: 0 | U91: 0 | V91: 0 | W91: 0 | X91: 0 | Y91: 0
Q92: 0 | R92: 0 | S92: 0 | T92: 0 | U92: 0 | V92: 0 | W92: 0 | X92: 0 | Y92: 0
Q93: 0 | R93: 0 | S93: 0 | T93: 0 | U93: 0 | V93: 0 | W93: 0 | X93: 0 | Y93: 0
Q94: 0 | R94: 0 | S94: 0 | T94: 0 | U94: 0 | V94: 0 | W94: 0 | X94: 0 | Y94: 0
Q95: 0 | R95: 0 | S95: 0 | T95: 0 | U95: 0 | V95: 0 | W95: 0 | X95: 0 | Y95: 0
Q96: 0 | R96: 0 | S96: 0 | T96: 0 | U96: 0 | V96: 0 | W96: 0 | X96: 0 | Y96: 0
Q97: 0 | R97: 0 | S97: 0 | T97: 0 | U97: 0 | V97: 0 | W97: 0 | X97: 0 | Y97: 0
Q98: 0 | R98: 0 | S98: 0 | T98: 0 | U98: 0 | V98: 0 | W98: 0 | X98: 0 | Y98: 0
Q99: 0 | R99: 0 | S99: 0 | T99: 0 | U99: 0 | V99: 0 | W99: 0 | X99: 0 | Y99: 0
Q100: 0 | R100: 0 | S100: 0 | T100: 0 | U100: 0 | V100: 0 | W100: 0 | X100: 0 | Y100: 0
Q101: 0 | R101: 0 | S101: 0 | T101: 0 | U101: 0 | V101: 0 | W101: 0 | X101: 0 | Y101: 0
Q102: 0 | R102: 0 | S102: 0 | T102: 0 | U102: 0 | V102: 0 | W102: 0 | X102: 0 | Y102: 0
Q103: 0 | R103: 0 | S103: 0 | T103: 0 | U103: 0 | V103: 0 | W103: 0 | X103: 0 | Y103: 0
Q104: 0 | R104: 0 | S104: 0 | T104: 0 | U104: 0 | V104: 0 | W104: 0 | X104: 0 | Y104: 0
Q105: 0 | R105: 0 | S105: 0 | T105: 0 | U105: 0 | V105: 0 | W105: 0 | X105: 0 | Y105: 0
Q106: 0 | R106: 0 | S106: 0 | T106: 0 | U106: 0 | V106: 0 | W106: 0 | X106: 0 | Y106: 0
Q107: 0 | R107: 0 | S107: 0 | T107: 0 | U107: 0 | V107: 0 | W107: 0 | X107: 0 | Y107: 0
Q108: 0 | R108: 0 | S108: 0 | T108: 0 | U108: 0 | V108: 0 | W108: 0 | X108: 0 | Y108: 0
Q109: 0 | R109: 0 | S109: 0 | T109: 0 | U109: 0 | V109: 0 | W109: 0 | X109: 0 | Y109: 0
Q110: 0 | R110: 0 | S110: 0 | T110: 0 | U110: 0 | V110: 0 | W110: 0 | X110: 0 | Y110: 0
Q111: 0 | R111: 0 | S111: 0 | T111: 0 | U111: 0 | V111: 0 | W111: 0 | X111: 0 | Y111: 0
Q112: 0 | R112: 0 | S112: 0 | T112: 0 | U112: 0 | V112: 0 | W112: 0 | X112: 0 | Y112: 0
Q113: 0 | R113: 0 | S113: 0 | T113: 0 | U113: 0 | V113: 0 | W113: 0 | X113: 0 | Y113: 0
Q114: 0 | R114: 0 | S114: 0 | T114: 0 | U114: 0 | V114: 0 | W114: 0 | X114: 0 | Y114: 0
A116: Reference Table: Type of Equipment and Default Capacity Ranges (Lower to Upper Range) for Table 3
A117: Domestic Refrigeration | C117: Domestic refrigeration units (capacity 0.05 to 0.5 kg)
A118: Stand-Alone Commercial | C118: Stand alone commercial applications (capacity 0.2 to 6 kg)
A119: Medium/Large Commercial | C119: Medium and large commercial refrigeration units (capacity 50 to 2,000 kg)
A120: Transport Refrigeration | C120: Transportation refrigeration units (capacity 3 to 8 kg)
A121: Industrial Refrigeration | C121: Industrial, food processing and cold storage units (capacity 10 to 10,000 kg)
A122: Chillers | C122: Commercial chillers (default capacity 10 to 2,000 kg)
A123: Residential/Commercial A/C | C123: Residential and commercial units, including heat pumps (capacity 0.5 to 100 kg)
A124: Car A/C Units | C124: Passenger car A/C units (capacity 0.5 kg)
A125: Light-Duty Truck A/C Units | C125: Light-duty truck A/C units (capacity 1.5 kg)
A127: GHG Emissions
A129: Total CO2 Equivalent Emissions (metric tons) - Refrigeration and AC Equipment
F130: =(((SUM($F$26:$F$36)+SUM($H$50:$H$60))*kg_per_lb) +SUM($H$77:$H$114))/1000 -> 0
A132: Notes:
A133: 1. CO2 emissions estimated using emission factors provided in Table 3 of the Center for Corporate Climate Leadership Greenhouse Gas Inventory Guidance
A134: Direct Fugitive Emissions from Refrigeration, Air Conditioning, Fire Suppression and Industrial Gases. (Nov 2014).
A135: 2. GWPs are from Intergovernmental Panel on Climate Change (IPCC) Fourth Assessment Report (2007).

Sheet Fire Suppression
A3: Scope 1 Emissions from Fire Suppression Equipment
A5: Guidance
A6: (A) HFC, PFC, and CO2 fire suppressants are required to be included in the GHG inventory. Other fire suppressants such as Halon compounds, HCFCs, aqueous solutions, or inert gases are typically excluded from a GHG inventory.
A7: (B) Select ONE of the three options from which to estimate emissions. Options range from most preferred method
A8: (Option 1) to least preferred method (Option 3). If option 3, screening method, is used and emissions are determined
A9: to be significant when compared to other emission sources, then one of the other methods should be applied to calculate
A10: emissions more accurately.
A11: (C) Enter annual data in ORANGE cells as appropriate for the selected option.
A13: Option 1. Material Balance Method: Enter organization-wide fire suppression gases stored and transferred (by gas) in Table 1.
A14: - Inventory Change = difference of gas stored in inventory from beginning to end of reporting period.
A15: (Includes only gas stored on-site (i.e. cylinders) and not gas contained within equipment).
A16: - Transferred Amount = gas purchased minus gas sold/disposed during reporting period.
A17: -- Gas purchased includes: Purchases for inventory, as part of equipment servicing (not from inventory)
A18: within purchased equipment and gas returned to the site after off-site recycling.
A19: -- Gas sold/disposed includes: Returns to supplier, sales or disposals (including within equipment),
A20: and gas sent off-site for recycling, reclamation, or destruction.
A21: - Capacity Change = capacity of all units at beginning minus capacity of all units at end of reporting period.
A22: (can be assumed to be capacity of new units minus capacity of retired units).
A24: Table 1. Organization-Wide Fire Suppression Gas CO2 Equivalent Emissions - Material Balance
A25: Gas | B25: Gas | C25: Inventory | D25: Transferred | E25: Capacity | F25: CO2 Equivalent
B26: GWP | C26: Change | D26: Amount | E26: Change | F26: Emissions
C27: (lb) | D27: (lb) | E27: (lb) | F27: (lb)
A28: CO2 | B28: =VLOOKUP(A28,GWP,2,FALSE) -> 1 | F28: =IF(($C28+$D28+$E28)*$B28=0,"",($C28+$D28+$E28)*$B28) -> 
A29: HFC-23 | B29: 14800 | F29: =IF(($C29+$D29+$E29)*$B29=0,"",($C29+$D29+$E29)*$B29) -> 
A30: HFC-125 | B30: 3500
A31: HFC-134a | B31: 1430
A32: HFC-227ea | B32: 3220
A33: HFC-236fa | B33: 9810
A34: CF4 | B34: 7390
A35: C4F10 | B35: 8860
A37: Option 2. Material Balance Method (Simplified): Enter organization-wide fire suppression gas in units (by gas) in Table 2.
A38: - New units are those installed during reporting period (do not include any data for new units pre-charged by
A39: supplier), disposed units were disposed of during the reporting period, and existing units are all others.
A40: - Charge/Recharge = gas added to units by organization or a contractor (do not include pre-charge by manufacturer).
A41: - Capacity = sum of the full capacity for all units (do not include new units pre-charged by manufacturer).
A42: - Amount recovered = total gas recovered from all retired units.
A44: Table 2. Organization-Wide Fire Suppression Gas CO2 Equivalent Emissions - Simplified Material Balance
C45: New Units | E45: Existing Units | F45: Disposed Units | H45: CO2 Equivalent
A46: Gas | B46: Gas | C46: Charge | D46: Capacity | E46: Recharge | F46: Capacity | G46: Recovered | H46: Emissions
B47: GWP | C47: (lb) | D47: (lb) | E47: (lb) | F47: (lb) | G47: (lb) | H47: (lb)
A48: CO2 | B48: =VLOOKUP(A48,GWP,2,FALSE) -> 1 | H48: =IF(($C48-$D48+$E48+$F48-$G48)*$B48=0,"",($C48-$D48+$E48+$F48-$G48)*$B48) -> 
A49: HFC-23 | B49: 14800 | H49: =IF(($C49-$D49+$E49+$F49-$G49)*$B49=0,"",($C49-$D49+$E49+$F49-$G49)*$B49) -> 
A50: HFC-125 | B50: 3500
A51: HFC-134a | B51: 1430
A52: HFC-227ea | B52: 3220
A53: HFC-236fa | B53: 9810
A54: CF4 | B54: 7390
A55: C4F10 | B55: 8860
A57: Option 3. Screening Method: Enter fire suppression gas information for each unit or group of units (by gas) in Table 3.
A58: - Enter "Type of Equipment" (Fixed or Portable) and select "Gas Type" from the drop down box.
A59: - Enter capacity (by gas type) for all units that operated during reporting period.
A60: -- For each unit added or removed during reporting period, multiply its capacity by a usage factor (0.0 to 1.0).
A61: -- If data entered for multiple units, sum the capacities for all units.
A62: - See example entry in first row (Green Italics).
A64: Table 3. Source Level Fire Suppression Gas CO2 Equivalent Emissions - Screening Method
A65: Source | B65: Type of | C65: Gas | D65: Gas | E65: Unit | F65: CO2 Equivalent
A66: ID | B66: Equipment | C66: Type | D66: GWP | E66: Capacity | F66: Emissions
B67: (Fixed/Portable) | E67: (kg) | F67: (kg)
A68: Bldg-012 | B68: Fixed | C68: HFC-134a | D68: =IF($C68="","",VLOOKUP(C68,GWP,2,FALSE)) -> 1430 | E68: 1.3 | F68: =IF($B68="Fixed",$D68*Fixed_FireLeakRate*$E68,IF($B68="Portable",$D68*Portable_FireLeakRate*$E68,"")) -> 65.065
F69: =IF($B69="Fixed",$D69*Fixed_FireLeakRate*$E69,IF($B69="Portable",$D69*Portable_FireLeakRate*$E69,"")) -> 
F70: =IF($B70="Fixed",$D70*0.015*$E70,IF($B70="Portable",$D70*0.02*$E70,"")) -> 
A106: GHG Emissions
A109: Total CO2 Equivalent Emissions (metric tons) - Fire Suppression Equipment | F109: =(((SUM($F$28:$F$35)+SUM($H$48:$H$55))*kg_per_lb)+SUM($F$69:$F$104))/1000 -> 0
A111: Notes:
A112: 1. CO2 emissions estimated using emission factors provided in Table 3 of the Center for Corporate Climate Leadership Greenhouse Gas Inventory Guidance
A113: Direct Fugitive Emissions from Refrigeration, Air Conditioning, Fire Suppression and Industrial Gases. (Nov 2014).
A114: 2.. Leak rates of fire extinguishers from Page A-248, US EPA - Inventory of U.S. Greenhouse Gas Emissions and Sinks: 1990 - 2014, April 15, 2016.
A115: 3. GWPs are from Intergovernmental Panel on Climate Change (IPCC) Fourth Assessment Report (2007).

Sheet Purchased Gases
A3: Scope 1 Emissions from Purchased Gases
A5: Guidance
A6: (A) Any use and release of the seven major greenhouse gases (CO2, CH4, N2O, PFCs, HFCs, SF6, and NF3) is required to be included in the GHG inventory. Ozone depleting substances, such as CFCs and HCFCs, are regulated internationally and are typically excluded from a GHG inventory or reported as a memo item.
A7: (B) Select the gas you purchase from the drop down menu and the amount purchased for the annual inventory reporting period in the ORANGE cells.
A8: (C) It is assumed that all gas purchased in the reporting period used and released during the reporting period. If your business makes bulk purchases and plans on using the gas for several years, divide the bulk amount by the years of usage and report that amount.
A9: Tip: If you purchase bulk gas, remember to report it for future years as well.
A11: Table 1. Purchased Gases
A12: Gas | B12: Gas | C12: Purchased | D12: CO2 Equivalent
B13: GWP | C13: Amount | D13: Emissions
C14: (lb) | D14: (lb)
B15: =IF(A15="","",VLOOKUP(A15,GWP,2,FALSE)) ->  | D15: =IF(B15="", "",B15*C15) -> 
B16: =IF(A16="","",VLOOKUP(A16,GWP,2,FALSE)) ->  | D16: =IF(B16="", "",B16*C16) -> 
A27: GHG Emissions
A30: Total CO2 Equivalent Emissions (metric tons) - Purchased Gas | E30: =SUM(D15:D25)*kg_per_lb/1000 -> 0
A32: Notes:
A33: 1. GWPs are from Intergovernmental Panel on Climate Change (IPCC) Fourth Assessment Report (2007).

Sheet Waste Gases
A3: Scope 1 Emissions from Combustion of Waste Gases
A5: Guidance
A6: (A) Enter annual data in ORANGE cells as appropriate. Data should be entered as an organization-wide value (all operations combined prior to entry into this table).
A7: (B) Enter total amount waste stream gas combusted.
A8: (C) Enter gas total number of moles per ft3.
A9: - This number is based on specific temperature and pressure conditions.
A10: - If no data are available use 0.00255 lb-mole/ft3 as a default value, based on conditions of 25oC and 1 atm.
A11: (D) Enter molar fraction (as a percentage) for each gas component in Table 1.
A12: - This number is based on either volume or molar mass percentage for each gas component.
A13: - It is assumed that the remainder of the waste stream will be made up of compounds not containing carbon.
D15: Waste Stream Gas Combusted: | F15: ft3
D16: Gas total number of moles per unit volume: | E16: 0.00255 | F16: lb-mole/ft3
A18: Table 1. Determining Emission Factor for Gas Waste Stream
A19: Component | B19: Chemical | C19: Molar | D19: Total | E19: Molecular | F19: Percent | G19: Carbon
B20: Formula | C20: Fraction | D20: Moles | E20: Weight | F20: Carbon | G20: Content
C21: (%) | D21: (lb-mole/ft3) | F21: (%) | G21: (lb/ft3)
A22: Carbon Monoxide | B22: CO | D22: =IF(C22=0,"",(C22*$E$16)) ->  | E22: =(12.011*1)+(15.9994*1) -> 28.0104 | F22: =(C_AtomicMass*1)/E22 -> 0.4288050153 | G22: =IF(C22=0,"",(D22*E22*F22)) -> 
A23: Carbon Dioxide | B23: CO2 | D23: =IF(C23=0,"",(C23*$E$16)) ->  | E23: =(12.011*1)+(15.9994*2) -> 44.0098 | F23: =(C_AtomicMass*1)/E23 -> 0.2729164868 | G23: =IF(C23=0,"",(D23*E23*F23)) -> 
A24: Methane | B24: CH4 | E24: =(12.011*1)+(1.0079*4) -> 16.0426 | F24: =(C_AtomicMass*1)/E24 -> 0.748694102 | G24: =IF(C24=0,"",(D24*E24*F24)) -> 
A25: Acetylene | B25: C2H2 | E25: =(12.011*2)+(1.0079*2) -> 26.0378 | F25: =(C_AtomicMass*2)/E25 -> 0.9225817849
A26: Ethylene | B26: C2H4 | E26: =(12.011*2)+(1.0079*4) -> 28.0536 | F26: =(C_AtomicMass*2)/E26 -> 0.8562893889
A27: Ethane | B27: C2H6 | E27: =(12.011*2)+(1.0079*6) -> 30.0694 | F27: =(C_AtomicMass*2)/E27 -> 0.7988852455
A28: Propylene | B28: C3H6 | E28: =(12.011*3)+(1.0079*6) -> 42.0804 | F28: =(C_AtomicMass*3)/E28 -> 0.8562893889
A29: Propane | B29: C3H8 | E29: =(12.011*3)+(1.0079*8) -> 44.0962 | F29: =(C_AtomicMass*3)/E29 -> 0.8171452415
A30: n-Butane | B30: C4H10 | E30: =(12.011*4)+(1.0079*10) -> 58.123 | F30: =(C_AtomicMass*4)/E30 -> 0.8265918827
A31: Benzene | B31: C6H6 | E31: =(12.011*6)+(1.0079*6) -> 78.1134 | F31: =(C_AtomicMass*6)/E31 -> 0.9225817849
A32: Hexane | B32: C6H14 | E32: =(12.011*6)+(1.0079*14) -> 86.1766 | F32: =(C_AtomicMass*6)/E32 -> 0.836259495
A33: Toluene | B33: C7H8 | E33: =(12.011*7)+(1.0079*8) -> 92.1402 | F33: =(C_AtomicMass*7)/E33 -> 0.9124898796
A34: Octane | B34: C8H18 | E34: =(12.011*8)+(1.0079*18) -> 114.2302 | F34: =(C_AtomicMass*8)/E34 -> 0.8411786025
A35: Ethanol | B35: C2H5OH | E35: =(12.011*2)+(1.0079*6)+(15.9994*1) -> 46.0688 | F35: =(C_AtomicMass*2)/E35 -> 0.5214375022
A36: Acetone | B36: CH3COCH3 | E36: =(12.011*3)+(1.0079*6)+(15.9994*1) -> 58.0798 | F36: =(C_AtomicMass*3)/E36 -> 0.6204050289
A37: Tetrahydrofuran | B37: C4H8O | E37: =(12.011*4)+(1.0079*8)+(15.9994*1) -> 72.1066 | F37: =(C_AtomicMass*4)/E37 -> 0.6662912965
A38: Other non-carbon | C38: =1-SUM(C22:C37) -> 1 | D38: 0.00255 | F38: 0 | G38: =IF(C38=0,"",(D38*E38*F38)) -> 0
A39: Total for all Components | C39: =SUM(C22:C38) -> 1 | D39: =SUM(D22:D38) -> 0.00255 | G39: =SUM(G22:G38) -> 0
A41: Step 4. Enter Oxidation Factor | D41: 100 | E41: %
A42: - If oxidation factor value is not known, use 100% as default value.
A44: GHG Emissions
A47: Total CO2 Equivalent Emissions (metric tons) - Waste Gas Combustion | E47: =($G$39*$D$41/100*($E$23/12.011))*$E$15*kg_per_lb/1000 -> 0
A49: Notes:
A50: 1. This tool is designed to apply the CO2 emission factor calculation methodology for a gas waste stream as provided in the
A51: Center for Corporate Climate Leadership Greenhouse Gas Inventory Guidance - Direct Emissions from Stationary Combustion Sources (January 2016).
A52: This tool can also be used to approximate emissions for other combustion sources such as gas welding and gas metal cutting.

Sheet Electricity
A3: Scope 2 Emissions from Purchase of Electricity
A5: Guidance
A6: The Indirect Emissions from Purchased Electricity Guidance document provides guidance for quantifying two scope 2 emissions totals, using a location-based method and a market-based method. The organization should quantify and report both totals in its GHG inventory. The location-based method considers average emission factors for the electricity grids that provide electricity. The market-based method considers contractual arrangements under which the organization procures electricity from specific sources, such as renewable energy.
A7: (A) Enter total annual electricity purchased in kWh and each eGRID subregion for each facility or site in ORANGE cells of Table 1.
A8: (B) If electricity consumption data are not available for a facility, an estimate should be made for completeness. See the "Items to Note" section of the Help sheet for suggested estimation approaches.
A9: (C) Select "eGRID subregion" from drop box and enter "Electricity Purchased."
B10: - Use map (Figure 1) at bottom of sheet to determine appropriate eGRID subregion. If subregion cannot be determined from the map, find the correct subregion by entering the location's zip code into EPA’s Power Profiler:
B11: https://oaspub.epa.gov/powpro/ept_pack.charts
A12: (D) See the market-based emission factor hierarchy on the market-based method Help sheet. If any of the first four types of emission factors are applicable, enter the factors in the yellow cells marked as "<enter factor>". If not, leave the yellow cells as is, and eGRID subregion factors will be used for market-based emissions. Example entry is shown in first row (GREEN Italics) for a facility that purchases RECs for 100% of its consumption, and therefore has a market-based emission factor of 0.
A14: Tips: Enter electricity usage by location and then look up the eGRID subregion for each location.
A15: If you purchase renewable energy that is less than 100% of your site's electricity, see the example in the market-based method Help sheet. | F15: Market-Based Use these cells to enter applicable market-based emission factors | L15: Location-Based
A16: Table 1. Total Amount of Electricity Purchased by eGRID Subregion | F16: Emission Factors | I16: Emissions | L16: Emissions
A17: Source | B17: Source | C17: Source | D17: eGRID Subregion | E17: Electricity | F17: CO2 | G17: CH4 | H17: N2O | I17: CO2 | J17: CH4 | K17: N2O | L17: CO2 | M17: CH4 | N17: N2O
A18: ID | B18: Description | C18: Area (sq ft) | D18: where electricity is consumed | E18: Purchased | F18: Emissions | G18: Emissions | H18: Emissions | I18: Emissions | J18: Emissions | K18: Emissions | L18: Emissions | M18: Emissions | N18: Emissions
E19: (kWh) | F19: (lb/MWh) | G19: (lb/MWh) | H19: (lb/MWh) | I19: (lb) | J19: (lb) | K19: (lb) | L19: (lb) | M19: (lb) | N19: (lb)
A20: Bldg-012 | B20: East Power Plant | C20: 12517 | D20: HIMS (HICC Miscellaneous) | E20: 200000 | F20: 0 | G20: 0 | H20: 0 | I20: =IFERROR(IF(ISBLANK(F20),L20,E20/1000*F20),"Enter Factor") -> 0 | J20: =IFERROR(IF(ISBLANK(G20),M20,F20/1000*G20),"Enter Factor") -> 0 | K20: =IFERROR(IF(ISBLANK(H20),N20,G20/1000*H20),"Enter Factor") -> 0 | L20: =IF(ISNA(VLOOKUP($D20,eGRID_em_Fctrs,4,FALSE)),"",VLOOKUP($D20,eGRID_em_Fctrs,4,FALSE)*$E20/1000) -> 240020 | M20: =IF(ISNA(VLOOKUP($D20,eGRID_em_Fctrs,5,FALSE)),"",VLOOKUP($D20,eGRID_em_Fctrs,5,FALSE)*$E20/1000) -> 13.616 | N20: =IF(ISNA(VLOOKUP($D20,eGRID_em_Fctrs,7,FALSE)),"",VLOOKUP($D20,eGRID_em_Fctrs,7,FALSE)*$E20/1000) -> 2.536
F21: <enter factor> | G21: <enter factor> | H21: <enter factor> | I21: =IFERROR(IF(OR(ISBLANK(F21),F21="<enter factor>"),L21,$E21/1000*F21),"") ->  | L21: =IF(ISNA(VLOOKUP($D21,eGRID_em_Fctrs,4,FALSE)),"",VLOOKUP($D21,eGRID_em_Fctrs,4,FALSE)*$E21/1000) -> 
F22: <enter factor> | G22: <enter factor> | H22: <enter factor> | L22: =IF(ISNA(VLOOKUP($D22,eGRID_em_Fctrs,4,FALSE)),"",VLOOKUP($D22,eGRID_em_Fctrs,4,FALSE)*$E22/1000) -> 
F23: <enter factor> | G23: <enter factor> | H23: <enter factor> | I23: =IFERROR(IF(OR(ISBLANK(F23),F23="<enter factor>"),L23,$E23/1000*F23),"") ->  | J23: =IFERROR(IF(OR(ISBLANK(G23),G23="<enter factor>"),M23,$E23/1000*G23),"") ->  | K23: =IFERROR(IF(OR(ISBLANK(H23),H23="<enter factor>"),N23,$E23/1000*H23),"") -> 
F24: <enter factor> | G24: <enter factor> | H24: <enter factor> | J24: =IFERROR(IF(OR(ISBLANK(G24),G24="<enter factor>"),M24,$E24/1000*G24),"") ->  | K24: =IFERROR(IF(OR(ISBLANK(H24),H24="<enter factor>"),N24,$E24/1000*H24),"") -> 
F25: <enter factor> | G25: <enter factor> | H25: <enter factor>
F26: <enter factor> | G26: <enter factor> | H26: <enter factor>
F27: <enter factor> | G27: <enter factor> | H27: <enter factor>
F28: <enter factor> | G28: <enter factor> | H28: <enter factor>
F29: <enter factor> | G29: <enter factor> | H29: <enter factor>
F30: <enter factor> | G30: <enter factor> | H30: <enter factor>
F31: <enter factor> | G31: <enter factor> | H31: <enter factor>
F32: <enter factor> | G32: <enter factor> | H32: <enter factor>
F33: <enter factor> | G33: <enter factor> | H33: <enter factor>
F34: <enter factor> | G34: <enter factor> | H34: <enter factor>
F35: <enter factor> | G35: <enter factor> | H35: <enter factor>
F36: <enter factor> | G36: <enter factor> | H36: <enter factor>
F37: <enter factor> | G37: <enter factor> | H37: <enter factor>
F38: <enter factor> | G38: <enter factor> | H38: <enter factor>
F39: <enter factor> | G39: <enter factor> | H39: <enter factor>
F40: <enter factor> | G40: <enter factor> | H40: <enter factor>
F41: <enter factor> | G41: <enter factor> | H41: <enter factor>
F42: <enter factor> | G42: <enter factor> | H42: <enter factor>
F43: <enter factor> | G43: <enter factor> | H43: <enter factor>
F44: <enter factor> | G44: <enter factor> | H44: <enter factor>
F45: <enter factor> | G45: <enter factor> | H45: <enter factor>
F46: <enter factor> | G46: <enter factor> | H46: <enter factor>
F47: <enter factor> | G47: <enter factor> | H47: <enter factor>
F48: <enter factor> | G48: <enter factor> | H48: <enter factor>
F49: <enter factor> | G49: <enter factor> | H49: <enter factor>
F50: <enter factor> | G50: <enter factor> | H50: <enter factor>
F51: <enter factor> | G51: <enter factor> | H51: <enter factor>
F52: <enter factor> | G52: <enter factor> | H52: <enter factor>
F53: <enter factor> | G53: <enter factor> | H53: <enter factor>
F54: <enter factor> | G54: <enter factor> | H54: <enter factor>
F55: <enter factor> | G55: <enter factor> | H55: <enter factor>
F56: <enter factor> | G56: <enter factor> | H56: <enter factor>
F57: <enter factor> | G57: <enter factor> | H57: <enter factor>
A58: Total Emissions for All Sources | E58: =SUM($E$21:$E$57) -> 0 | I58: =SUM($I$21:$I$57) -> 0 | J58: =SUM($J$21:$J$57) -> 0 | K58: =SUM($K$21:$K$57) -> 0 | L58: =SUM($L$21:$L$57) -> 0 | M58: =SUM($M$21:$M$57) -> 0 | N58: =SUM($N$21:$N$57) -> 0
A60: GHG Emissions
A62: CO2 Equivalent Emissions (metric tons)
A63: Location-Based Electricity Emissions | E63: =($L$58+$M$58*CH4_GWP+$N$58*N2O_GWP)*kg_per_lb/1000 -> 0
A64: Market-Based Electricity Emissions | E64: =($I$58+$J$58*CH4_GWP+$K$58*N2O_GWP)*kg_per_lb/1000 -> 0
A65: Notes:
A66: 1. CO2 , CH4 and N2O emissions are estimated using methodology provided in EPA's Center for Corporate Climate Leadership Greenhouse Gas Inventory Guidance
A67: - Indirect Emissions from Purchased Electricity (January 2016).
A70: Figure 1. EPA eGRID2012, October 2015.

Sheet Steam
A3: Scope 2 Emissions from Purchase of Steam
A5: Guidance
A6: (A) Enter annual data for each facility or site in ORANGE cells in Table 1.
A7: - Enter amount of steam purchased in mmBtu. Heat Content conversions can be found on the "Heat Content" sheet.
A8: - Select "Fuel Type" from drop box to indicate the fuel used to generate the steam.
A9: -- If "Fuel Type" is not known, select "Natural Gas" from drop box as default value.
A10: -- If more than one fuel type is used, enter multiple rows, apportioning the steam using the same percentages as the fuel mix.
A11: (B) If steam is purchased at a facility but steam consumption data are not available, an estimate should be made for completeness. See the "Items to Note" section of the Help sheet for suggested estimation approaches.
A12: (C) Preferred Method (steam emission factors ARE available from your supplier). Example entry is shown in first data row (GREEN Italics).
A13: - Enter supplier emission factors for CO2, CH4, and N2O if available, otherwise leave factor cells blank.
A14: - These should be expressed in lb / mmBtu of Steam. Heat Content conversions can be found on the "Heat Content" sheet.
A15: - Boiler Efficiency is not necessary if emission factors are available.
B16: - Typically supplier-specific emission factors for steam will apply to both location-based and market-based emissions, and no market-based emission factors need to be entered. However, if there are different applicable market-based emission factors, enter the factors in the yellow cells marked as "<enter factor>". If needed, see the market-based method Help Sheet for guidance.
A17: (D) Alternative Method (supplier-specific emission factors are NOT available). Example entry is shown in second data row (BLUE Italics).
A18: - Enter boiler efficiency. If boiler efficiency is not known, use 80% as default value. Do not enter market-based emission factors.
G20: Location-Based Use these cells to enter supplier specific emission factors | J20: Market-Based Use these cells to enter market-based emission factors if different than the supplier-specific factors.
A21: Table 1. Fuel, Boiler, Steam and Emission Factor Data for Steam Purchased | G21: Emissions | J21: Emission Factors
A22: Source ID | B22: Source Description | C22: Source Area (sq ft) | D22: Fuel Type | E22: Boiler | F22: Steam | G22: CO2 | H22: CH4 | I22: N2O | J22: CO2 | K22: CH4 | L22: N2O
E23: Efficiency | F23: Purchased | G23: Factor | H23: Factor | I23: Factor | J23: Factor | K23: Factor | L23: Factor
E24: (%) | F24: (mmBtu) | G24: (kg / mmBtu) | H24: (g / mmBtu) | I24: (g / mmBtu) | J24: (kg / mmBtu) | K24: (g / mmBtu) | L24: (g / mmBtu)
A25: Bldg-011 | B25: Office | C25: 5000 | D25: Natural Gas | F25: 5000 | G25: 72 | H25: 1.5 | I25: 0.6 | J25: <enter factor> | K25: <enter factor> | L25: <enter factor>
A26: Bldg-012 | B26: Steam-Blr Room | C26: 2000 | D26: Sub-bituminous Coal | E26: 80 | F26: 10000 | J26: <enter factor> | K26: <enter factor> | L26: <enter factor>
J27: <enter factor> | K27: <enter factor> | L27: <enter factor>
J28: <enter factor> | K28: <enter factor> | L28: <enter factor>
J29: <enter factor> | K29: <enter factor> | L29: <enter factor>
J30: <enter factor> | K30: <enter factor> | L30: <enter factor>
J31: <enter factor> | K31: <enter factor> | L31: <enter factor>
J32: <enter factor> | K32: <enter factor> | L32: <enter factor>
J33: <enter factor> | K33: <enter factor> | L33: <enter factor>
J34: <enter factor> | K34: <enter factor> | L34: <enter factor>
J35: <enter factor> | K35: <enter factor> | L35: <enter factor>
J36: <enter factor> | K36: <enter factor> | L36: <enter factor>
J37: <enter factor> | K37: <enter factor> | L37: <enter factor>
J38: <enter factor> | K38: <enter factor> | L38: <enter factor>
J39: <enter factor> | K39: <enter factor> | L39: <enter factor>
J40: <enter factor> | K40: <enter factor> | L40: <enter factor>
J41: <enter factor> | K41: <enter factor> | L41: <enter factor>
J42: <enter factor> | K42: <enter factor> | L42: <enter factor>
J43: <enter factor> | K43: <enter factor> | L43: <enter factor>
J44: <enter factor> | K44: <enter factor> | L44: <enter factor>
J45: <enter factor> | K45: <enter factor> | L45: <enter factor>
J46: <enter factor> | K46: <enter factor> | L46: <enter factor>
J47: <enter factor> | K47: <enter factor> | L47: <enter factor>
J48: <enter factor> | K48: <enter factor> | L48: <enter factor>
J49: <enter factor> | K49: <enter factor> | L49: <enter factor>
J50: <enter factor> | K50: <enter factor> | L50: <enter factor>
J51: <enter factor> | K51: <enter factor> | L51: <enter factor>
J52: <enter factor> | K52: <enter factor> | L52: <enter factor>
J53: <enter factor> | K53: <enter factor> | L53: <enter factor>
J54: <enter factor> | K54: <enter factor> | L54: <enter factor>
J55: <enter factor> | K55: <enter factor> | L55: <enter factor>
J56: <enter factor> | K56: <enter factor> | L56: <enter factor>
J57: <enter factor> | K57: <enter factor> | L57: <enter factor>
J58: <enter factor> | K58: <enter factor> | L58: <enter factor>
J59: <enter factor> | K59: <enter factor> | L59: <enter factor>
J60: <enter factor> | K60: <enter factor> | L60: <enter factor>
J61: <enter factor> | K61: <enter factor> | L61: <enter factor>
J62: <enter factor> | K62: <enter factor> | L62: <enter factor>
J63: <enter factor> | K63: <enter factor> | L63: <enter factor>
J64: <enter factor> | K64: <enter factor> | L64: <enter factor>
A66: GHG Emissions
A68: Emissions by Source and Fuel Type for Steam Purchased | E68: Location-Based | H68: Market-Based
A69: Source | B69: Source | C69: Fuel Type | E69: CO2 | F69: CH4 | G69: N2O | H69: CO2 | I69: CH4 | J69: N2O
A70: ID | B70: Description | E70: Emissions | F70: Emissions | G70: Emissions | H70: Emissions | I70: Emissions | J70: Emissions
E71: (kg) | F71: (g) | G71: (g) | H71: (kg) | I71: (g) | J71: (g)
A72: =IF(A27="","",A27) ->  | C72: =IF(D27="","",D27) ->  | E72: =IF($F27="","",IF(G27="",(VLOOKUP($C72,Stationary_Fuel_Fctrs_mmBtu,2,FALSE))*$F27/(IF($E27="", 0.8,$E27/100)),G27*$F27)) ->  | F72: =IF($F27="","",IF(H27="",(VLOOKUP($C72,Stationary_Fuel_Fctrs_mmBtu,3,FALSE))*$F27/(IF($E27="", 0.8,$E27/100)),H27*$F27)) ->  | G72: =IF($F27="","",IF(I27="",(VLOOKUP($C72,Stationary_Fuel_Fctrs_mmBtu,4,FALSE))*$F27/(IF($E27="", 0.8,$E27/100)),I27*$F27)) ->  | H72: =IF($F27="","",IF(OR(J27="",J27="<enter factor>"),E72,J27*$F27)) ->  | I72: =IF($F27="","",IF(OR(K27="",K27="<enter factor>"),F72,K27*$F27)) ->  | J72: =IF($F27="","",IF(OR(L27="",L27="<enter factor>"),G72,L27*$F27)) -> 
E73: =IF($F28="","",IF(G28="",(VLOOKUP($C73,Stationary_Fuel_Fctrs_mmBtu,2,FALSE))*$F28/(IF($E28="", 0.8,$E28/100)),G28*$F28)) ->  | H73: =IF($F28="","",IF(OR(J28="",J28="<enter factor>"),E73,J28*$F28)) ->  | I73: =IF($F28="","",IF(OR(K28="",K28="<enter factor>"),F73,K28*$F28)) ->  | J73: =IF($F28="","",IF(OR(L28="",L28="<enter factor>"),G73,L28*$F28)) -> 
A92: =IF(A47="","",A47) -> 
A108: =IF(A63="","",A63) ->  | B108: =IF(B63="","",B63) -> 
A109: =IF(A64="","",A64) ->  | B109: =IF(B64="","",B64) -> 
A110: Total Emissions for All Sources | E110: =SUM(E72:E109) -> 0 | F110: 0 | G110: 0 | H110: 0 | I110: 0 | J110: 0
A112: CO2 Equivalent Emissions (metric tons)
A113: Location-Based Electricity Emissions | F113: =($E$110+$F$110*CH4_GWP/1000+$G$110*N2O_GWP/1000)/1000 -> 0
A114: Market-Based Electricity Emissions | F114: =($H$110+$I$110*CH4_GWP/1000+$J$110*N2O_GWP/1000)/1000 -> 0

Sheet Business Travel
A3: Scope 3 Emissions from Employee Business Travel
A5: Guidance
A6: (A) Enter annual data in ORANGE cells in the table corresponding to the transport method. Example entry is shown in first row (GREEN Italics).
A7: (B) Mileage data can be entered for individual trips or individual employees, or miles for multiple employees can be subtotaled by
A8: vehicle type or flight length.
A9: (C) For employees traveling by car, select "Vehicle Type" and enter miles traveled (vehicle-miles) in Table 1.
A10: (D) For employees traveling by rail or bus, select "Vehicle Type" and enter passenger-miles in Table 2.
A11: (E) For employees traveling by air, select "Flight Length" and enter passenger-miles in Table 3.
A12: If the flight length is unknown, assume "Medium Haul".
A14: Table 1. Personal Vehicle, Rental Car or Taxi - Business Travel by Vehicle-Miles (CO2, CH4 and N2O)
A15: Source ID | B15: Source Description | C15: Vehicle Type | D15: Vehicle-Miles (miles) | E15: CO2 Emissions (kg) | F15: CH4 Emissions (g) | G15: N2O Emissions (g)
A16: JD-001 | B16: John Doe 1 | C16: Passenger Car | D16: 100 | E16: =IF($C16="","",VLOOKUP($C16,Biz_Travel_Fctr,2,FALSE)*$D16) -> 35.5 | F16: =IF($C16="","",VLOOKUP($C16,Biz_Travel_Fctr,3,FALSE)*$D16) -> 2.1 | G16: =IF($C16="","",VLOOKUP($C16,Biz_Travel_Fctr,4,FALSE)*$D16) -> 1.5
A55: Total for all Personal Vehicle Business Travel | E55: =SUM(E17:E54) -> 0 | F55: =SUM(F17:F54) -> 0 | G55: =SUM(G17:G54) -> 0
A57: Table 2. Rail or Bus - Business Travel by Passenger-Miles (CO2, CH4 and N2O)
A58: Source ID | B58: Source Description | C58: Vehicle Type | D58: Passenger-Miles (miles) | E58: CO2 Emissions (kg) | F58: CH4 Emissions (g) | G58: N2O Emissions (g)
A59: JD-001 | B59: John Doe 1 | C59: Intercity Rail (i.e. Amtrak) | D59: 100 | E59: 18.5 | F59: 0.2 | G59: 0.1
E60: =IF($C60="","",VLOOKUP($C60,Biz_Travel_Fctr,2,FALSE)*$D60) ->  | F60: =IF($C60="","",VLOOKUP($C60,Biz_Travel_Fctr,3,FALSE)*$D60) ->  | G60: =IF($C60="","",VLOOKUP($C60,Biz_Travel_Fctr,4,FALSE)*$D60) -> 
A108: Total for all Rail and Bus Business Travel | E108: =SUM(E60:E107) -> 0 | F108: =SUM(F60:F107) -> 0 | G108: =SUM(G60:G107) -> 0
A110: Table 3. Air - Business Travel by Passenger-Miles (CO2, CH4 and N2O)
A111: Source ID | B111: Source Description | C111: Flight Length | D111: Passenger-Miles (miles) | E111: CO2 Emissions (kg) | F111: CH4 Emissions (g) | G111: N2O Emissions (g)
A112: JD-001 | B112: John Doe 1 | C112: Medium Haul (>= 300 miles, < 2300 miles) | D112: 1000 | E112: 229 | F112: 10.4 | G112: 8.5
E113: =IF($C113="","",VLOOKUP($C113,Biz_Travel_Fctr,2,FALSE)*$D113) ->  | F113: =IF($C113="","",VLOOKUP($C113,Biz_Travel_Fctr,3,FALSE)*$D113) ->  | G113: =IF($C113="","",VLOOKUP($C113,Biz_Travel_Fctr,4,FALSE)*$D113) -> 
A145: Total for all Air Business Travel | E145: =SUM(E113:E144) -> 0 | F145: =SUM(F113:F144) -> 0 | G145: =SUM(G113:G144) -> 0
A147: GHG Emissions
A149: Total CO2 Emissions by Travel Type
A150: Transport Type | C150: CO2 (kg) | D150: CH4 (g) | E150: N2O (g)
A151: Passenger Car | C151: =SUMIF($C$17:$C$54,$A151,E$17:E$54) -> 0 | D151: =SUMIF($C$17:$C$54,$A151,F$17:F$54) -> 0 | E151: 0
A152: Light-Duty Truck | C152: 0 | D152: 0 | E152: 0
A153: Motorcycle | C153: 0 | D153: 0 | E153: 0
A154: Intercity Rail (i.e. Amtrak) | C154: =SUMIF($C$60:$C$107,$A154,E$60:E$107) -> 0 | D154: 0 | E154: 0
A155: Commuter Rail | C155: 0 | D155: 0 | E155: 0
A156: Transit Rail (i.e. Subway, Tram) | C156: 0 | D156: 0 | E156: 0
A157: Bus | C157: 0 | D157: 0 | E157: 0
A158: Short Haul (< 300 miles) | C158: =SUMIF($C$113:$C$144,$A158,E$113:E$144) -> 0 | D158: =SUMIF($C$113:$C$144,$A158,F$113:F$144) -> 0 | E158: =SUMIF($C$113:$C$144,$A158,G$113:G$144) -> 0
A159: Medium Haul (>= 300 miles, < 2300 miles) | C159: =SUMIF($C$113:$C$144,$A159,E$113:E$144) -> 0 | D159: =SUMIF($C$113:$C$144,$A159,F$113:F$144) -> 0 | E159: =SUMIF($C$113:$C$144,$A159,G$113:G$144) -> 0
A160: Long Haul (>= 2300 miles) | C160: 0 | D160: 0 | E160: 0
A163: Total CO2 Equivalent Emissions (metric tons) - Employee Business Travel | D163: =(SUM(C151:C160)+SUM(D151:D160)/1000*CH4_GWP+SUM(E151:E160)/1000*N2O_GWP)/1000 -> 0

Sheet Commuting
A3: Scope 2 Emissions from Employee Commuting
A5: Guidance
A6: (A) Enter annual data in ORANGE cells in the table corresponding to the transport method. Example entry is shown in first row (GREEN Italics).
A7: (B) For employees commuting in a personal vehicle, select the "Vehicle Type" and enter miles traveled (vehicle-miles) in Table 1.
A8: (C) For employees commuting using public transportation, select the "Transport Type" and enter passenger-miles in Table 2.
A10: Tip: If more than one employee travels by the same vehicle type or transport type, miles can be combined and entered in one row.
A12: Table 1. Personal Vehicle - Employee Commuting by Vehicle-Miles (CO2, CH4 and N2O)
A13: Source ID | B13: Source Description | C13: Vehicle Type | D13: Vehicle-Miles (miles) | E13: CO2 Emissions (kg) | F13: CH4 Emissions (g) | G13: N2O Emissions (g)
A14: JD-001 | B14: John Doe 1 | C14: Passenger Car | D14: 100 | E14: =IF($C14="","",VLOOKUP($C14,Biz_Travel_Fctr,2,FALSE)*$D14) -> 35.5 | F14: =IF($C14="","",VLOOKUP($C14,Biz_Travel_Fctr,3,FALSE)*$D14) -> 2.1 | G14: =IF($C14="","",VLOOKUP($C14,Biz_Travel_Fctr,4,FALSE)*$D14) -> 1.5
A53: Total for all Personal Vehicle Employee Commuting | E53: =SUM(E15:E52) -> 0 | F53: =SUM(F15:F52) -> 0 | G53: =SUM(G15:G52) -> 0
A55: Table 2. Public Transportation - Employee Commuting by Passenger-Miles (CO2, CH4 and N2O)
A56: Source ID | B56: Source Description | C56: Transport Type | D56: Passenger-Miles (miles) | E56: CO2 Emissions (kg) | F56: CH4 Emissions (g) | G56: N2O Emissions (g)
A57: JD-001 | B57: John Doe 1 | C57: Intercity Rail (i.e. Amtrak) | D57: 100 | E57: 18.5 | F57: 0.2 | G57: 0.1
E58: =IF($C58="","",VLOOKUP($C58,Biz_Travel_Fctr,2,FALSE)*$D58) ->  | F58: =IF($C58="","",VLOOKUP($C58,Biz_Travel_Fctr,3,FALSE)*$D58) ->  | G58: =IF($C58="","",VLOOKUP($C58,Biz_Travel_Fctr,4,FALSE)*$D58) -> 
A106: Total for all Public Transportation Employee Commuting | E106: =SUM(E58:E105) -> 0 | F106: =SUM(F58:F105) -> 0 | G106: =SUM(G58:G105) -> 0
A108: GHG Emissions
A110: Total CO2 Emissions by Commuting Type
A111: Transport Type | C111: CO2 (kg) | D111: CH4 (g) | E111: N2O (g)
A112: Passenger Car | C112: =SUMIF($C$15:$C$52,$A112,E$15:E$52) -> 0 | D112: 0 | E112: 0
A113: Light-Duty Truck | C113: 0 | D113: 0 | E113: 0
A114: Motorcycle | C114: 0 | D114: 0 | E114: 0
A115: Intercity Rail (i.e. Amtrak) | C115: =SUMIF($C$58:$C$105,$A115,E$58:E$105) -> 0 | D115: =SUMIF($C$58:$C$105,$A115,F$58:F$105) -> 0 | E115: =SUMIF($C$58:$C$105,$A115,G$58:G$105) -> 0
A116: Commuter Rail | C116: =SUMIF($C$58:$C$105,$A116,E$58:E$105) -> 0 | D116: 0 | E116: 0
A117: Transit Rail (i.e. Subway, Tram) | C117: =SUMIF($C$58:$C$105,$A117,E$58:E$105) -> 0 | D117: 0 | E117: 0
A118: Bus | C118: =SUMIF($C$58:$C$105,$A118,E$58:E$105) -> 0 | D118: =SUMIF($C$58:$C$105,$A118,F$58:F$105) -> 0 | E118: =SUMIF($C$58:$C$105,$A118,G$58:G$105) -> 0
A121: Total CO2 Equivalent Emissions (metric tons) - Commuting | D121: =(SUM(C112:C118)+SUM(D112:D118)/1000*CH4_GWP+SUM(E112:E118)/1000*N2O_GWP)/1000 -> 0

Sheet Product Transport
A3: Scope 2 Emissions from Product Transport
A5: Guidance
A6: (A) Enter annual data in ORANGE cells in the table corresponding to the transport method. Example entry is shown in first row (GREEN Italics).
A7: (B) For rail, water, or air shipments, enter ton-mile data in Table 2. See Help sheet for details on calculating ton-miles.
A8: (C) For road shipments, if your organization's product is the only product transported in the vehicle (i.e. full truckload shipment) then enter the vehicle type and miles for each leg of transport in Table 1. Emissions are calculated using vehicle-miles.
A9: (D) For road shipments, if your organization's product makes up only part of the truck load (i.e. less-than-load or LTL shipment), then enter the vehicle type and ton-miles (product weight x distance) for each leg of transport in Table 2. Emissions are calculated using ton-miles. See Help sheet for details on calculating ton-miles.
A10: Tip: Make sure all transport legs are accounted for from manufacturing facility to distribution to customer.
A12: Table 1. On-Road Vehicle Product Transport by Vehicle-Miles (CO2, CH4 and N2O)
A13: Source ID | B13: Source Description | C13: Vehicle Type | D13: Vehicle-Miles (miles) | E13: CO2 Emissions (kg) | F13: CH4 Emissions (g) | G13: N2O Emissions (g)
A14: Bldg-012 | B14: East Power Plant Finished Goods | C14: Medium- and Heavy-duty Truck | D14: 100 | E14: =IF($C14="","",VLOOKUP($C14,Prod_Trans_Fctrs,2,FALSE)*$D14) -> 143 | F14: =IF($C14="","",VLOOKUP($C14,Prod_Trans_Fctrs,3,FALSE)*$D14) -> 1.5 | G14: =IF($C14="","",VLOOKUP($C14,Prod_Trans_Fctrs,4,FALSE)*$D14) -> 1.3
A53: Total for Product Transport by Vehicle-Miles | E53: =SUM(E15:E52) -> 0 | F53: =SUM(F15:F52) -> 0 | G53: =SUM(G15:G52) -> 0
A56: Table 2. Product Transport by Ton-Miles (CO2, CH4 and N2O)
A57: Source ID | B57: Source Description | C57: Vehicle Type | D57: Ton-Miles | E57: CO2 Emissions (kg) | F57: CH4 Emissions (g) | G57: N2O Emissions (g)
A58: Bldg-012 | B58: East Power Plant Finished Goods | C58: Medium- and Heavy-Duty Truck | D58: 100 | E58: =IF($D58="","",VLOOKUP(C58,Prod_Trans_Fctrs,2,FALSE)*$D58) -> 143 | F58: =IF($D58="","",VLOOKUP(C58,Prod_Trans_Fctrs,3,FALSE)*$D58) -> 1.5 | G58: =IF($D58="","",VLOOKUP(C58,Prod_Trans_Fctrs,4,FALSE)*$D58) -> 1.3
E59: =IF($C59="","",VLOOKUP(C59,Prod_Trans_Fctrs,2,FALSE)*$D59) ->  | F59: =IF($C59="","",VLOOKUP(C59,Prod_Trans_Fctrs,3,FALSE)*$D59) ->  | G59: =IF($C59="","",VLOOKUP(C59,Prod_Trans_Fctrs,4,FALSE)*$D59) -> 
A97: Total for all Product Transport by Ton-Miles | E97: =SUM(E59:E96) -> 0 | F97: =SUM(F59:F96) -> 0 | G97: =SUM(G59:G96) -> 0
A99: GHG Emissions
A101: Total Emissions by Product Transport Type
A102: Transport Type | C102: CO2 (kg) | D102: CH4 (g) | E102: N2O (g)
A103: Medium- and Heavy-Duty Truck | C103: =SUMIF($C$15:$C$52,$A103,E$15:E$52) -> 0 | D103: 0 | E103: 0
A104: Light-Duty Truck | C104: 0 | D104: 0 | E104: 0
A105: Passenger Car | C105: 0 | D105: 0 | E105: 0
A106: Truck | C106: =SUMIF($C$59:$C$96,$A106,E$59:E$96) -> 0 | D106: 0 | E106: 0
A107: Rail | C107: 0 | D107: 0 | E107: 0
A108: Aircraft | C108: 0 | D108: 0 | E108: 0
A109: Waterborne Craft | C109: 0 | D109: 0 | E109: 0
A112: Total CO2 Equivalent Emissions (metric tons) - Product Transport | D112: =(SUM(C103:C109)+SUM(D103:D109)/1000*CH4_GWP+SUM(E103:E109)/1000*N2O_GWP)/1000 -> 0

Sheet RECs-Green Power
A3: Renewable Energy Certificates (RECs)/Green Power
A6: This section is no longer relevant as all REC or green power purchases should reported using the scope 2 market-based method. See the Electricity Tab or Help sheet for more information

Sheet Offsets
A3: Purchased Offsets
A5: Guidance
A6: (A) Enter quantity of offsets purchased for each offset project in terms of CO2 equivalent in ORANGE cells of Table 1. Enter offsets purchased for the inventory reporting period. Example entry is shown in first row (GREEN Italics).
A8: Table 1. Total Amount of Purchased Offsets
A9: ID | B9: Project Description | C9: Offsets Purchased (Metric Tons CO2e)
A10: Trees | B10: Forestry Project | C10: 5000
A22: GHG Reductions
A24: Total CO2 Equivalent Emission Reductions (metric tons) - Offsets
C25: =SUM(C11:C20) -> 0

Sheet Unit Conversions
A3: Tool Sheet: Unit Conversions
A6: Mass
A7: Convert From | B7: Convert To | C7: Multiply By | D7: Units
A8: pounds (lb) | B8: gram (g) | C8: 453.6 | D8: g / lb
A9: pounds (lb) | B9: kilogram (kg) | C9: 0.4536 | D9: kg / lb
A10: pounds (lb) | B10: metric ton | C10: 0.0004536 | D10: metric ton / lb
A11: kilogram (kg) | B11: pounds (lb) | C11: 2.205 | D11: lb / kg
A12: short ton | B12: pounds (lb) | C12: 2000 | D12: lb / short ton
A13: short ton | B13: kilogram (kg) | C13: 907.2 | D13: kg / short ton
A14: metric ton | B14: pounds (lb) | C14: 2205 | D14: lb / metric ton
A15: metric ton | B15: kilogram (kg) | C15: 1000 | D15: kg / metric ton
A16: metric ton | B16: short ton | C16: 1.102 | D16: short ton / metric ton
A18: Volume
A19: Convert From | B19: Convert To | C19: Multiply By | D19: Units
A20: standard cubic foot (scf) | B20: US gallon (gal) | C20: 7.4805 | D20: gal / scf
A21: standard cubic foot (scf) | B21: barrel (bbl) | C21: 0.1781 | D21: bbl / scf
A22: standard cubic foot (scf) | B22: liters (L) | C22: 28.32 | D22: L / scf
A23: standard cubic foot (scf) | B23: cubic meters (m3) | C23: 0.02832 | D23: m3 / scf
A24: US gallon (gal) | B24: barrel (bbl) | C24: 0.0238 | D24: bbl / gal
A25: US gallon (gal) | B25: liters (L) | C25: 3.785 | D25: L / gal
A26: US gallon (gal) | B26: cubic meters (m3) | C26: 0.003785 | D26: m3 / gal
A27: barrel (bbl) | B27: US gallons (gal) | C27: 42 | D27: gal / bbl
A28: barrel (bbl) | B28: liters (L) | C28: 158.99 | D28: L / bbl
A29: barrel (bbl) | B29: cubic meters (m3) | C29: 0.1589 | D29: m3 / bbl
A30: liters (L) | B30: cubic meters (m3) | C30: 0.001 | D30: m3 / L
A31: liters (L) | B31: US gallon (gal) | C31: 0.2642 | D31: gal / L
A32: cubic meters (m3) | B32: barrel (bbl) | C32: 6.2897 | D32: bbl / m3
A33: cubic meters (m3) | B33: US gallon (gal) | C33: 264.2 | D33: gal / m3
A34: cubic meters (m3) | B34: liters (L) | C34: 1000 | D34: L / m3
A36: Energy
A37: Convert From | B37: Convert To | C37: Multiply By | D37: Units
A38: kilowatt hour (kWh) | B38: Btu | C38: 3412 | D38: Btu / kWh
A39: kilowatt hour (kWh) | B39: kilojoules (KJ) | C39: 3600 | D39: KJ / kWh
A40: megajoule (MJ) | B40: gigajoules (GJ) | C40: 0.001 | D40: GJ / MJ
A41: gigajoule (GJ) | B41: million Btu (mmBtu) | C41: 0.9478 | D41: mmBtu / GJ
A42: gigajoule (GJ) | B42: kilowatt hours (kWh) | C42: 277.8 | D42: kWh / GJ
A43: Btu | B43: joules (J) | C43: 1055 | D43: J / Btu
A44: million Btu (mmBtu) | B44: gigajoules (GJ) | C44: 1.055 | D44: GJ / mmBtu
A45: million Btu (mmBtu) | B45: kilowatt hours (kWh) | C45: 293 | D45: kWh / mmBtu
A46: therm | B46: Btu | C46: 100000 | D46: Btu / therm
A47: therm | B47: gigajoules (GJ) | C47: 0.1055 | D47: GJ / therm
A48: therm | B48: kilowatt hours (kWh) | C48: 29.3 | D48: kWh / therm
A50: Distance
A51: Convert From | B51: Convert To | C51: Multiply By | D51: Units
A52: mile | B52: kilometers (km) | C52: 1.609 | D52: km / mile
A53: nautical mile | B53: miles | C53: 1.15 | D53: mile / nautical mile
A54: kilometer (km) | B54: miles | C54: =ROUND(1/C52,3) -> 0.622 | D54: mile / km
A56: Other
A57: Kilo | B57: 1000
A58: Mega | B58: 1000000
A59: Giga | B59: 1000000000
A60: Tera | B60: 1000000000000
A61: Molecular Weigh of C | B61: 12
A62: Molecular Weight of CO2 | B62: 44

Sheet Heat Content
A3: Tool Sheet: Heat Content for Specific Fuels
A6: Fuel Type | B6: Convert From | C6: Convert To | D6: Multiply By | E6: Units | F6: Source
A7: Natural Gas | B7: mmBtu | C7: scf | D7: =ROUND(1/0.001026,6) -> 974.658869 | E7: scf / mmBtu | F7: EPA, Emission Factors Hub November 2015. Based on Federal Register (2009) EPA; 40 CFR Parts 86, 87, 89 et al; Mandatory Reporting of Greenhouse Gases. Memo: Table of Final 2013 Revisions to the Greenhouse Gas Reporting Rule (PDF) to 40 CFR part 98, subpart C: Table C–1 to Subpart C—Default CO2 Emission Factors and High Heat Values for Various Types of Fuel and Table C–2 to Subpart C—Default CH4 and N2O Emission Factors for Various Types of Fuel.
A8: Natural Gas | B8: Dth (Decatherm) | C8: scf | D8: =D7 -> 974.658869 | E8: scf / Dth
A9: Natural Gas | B9: therm | C9: scf | D9: =D8/10 -> 97.4658869 | E9: scf / therm
A10: Natural Gas | B10: ccf | C10: scf | D10: 100 | E10: scf / ccf
A11: Natural Gas | B11: Mcf | C11: scf | D11: 1000 | E11: scf / Mcf
A12: Natural Gas | B12: cubic meter | C12: scf | D12: =1/'Unit Conversions'!C23 -> 35.31073446 | E12: scf / cubic meter
A13: Natural Gas | B13: kWh | C13: scf | D13: =D7*('Unit Conversions'!C38/1000000) -> 3.325536061 | E13: scf / kWh
A14: Anthracite Coal | B14: mmBtu | C14: Short ton | D14: =1/25.09 -> 0.03985651654 | E14: short ton / mmBtu
A15: Bituminous Coal | B15: mmBtu | C15: Short ton | D15: =1/24.93 -> 0.04011231448 | E15: short ton / mmBtu
A16: Sub-bituminous Coal | B16: mmBtu | C16: Short ton | D16: =1/17.25 -> 0.05797101449 | E16: short ton / mmBtu
A17: Coal Coke | B17: mmBtu | C17: Short ton | D17: =1/24.8 -> 0.04032258065 | E17: short ton / mmBtu
A18: Lignite Coal | B18: mmBtu | C18: Short ton | D18: =1/14.21 -> 0.07037297678 | E18: short ton / mmBtu
A19: Mixed (Electric Power Sector) | B19: mmBtu | C19: Short ton | D19: =1/19.73 -> 0.0506842372 | E19: short ton / mmBtu
A20: Wood and Wood Residuals | B20: mmBtu | C20: Short ton | D20: =1/17.48 -> 0.05720823799 | E20: short ton / mmBtu
A21: Distillate Fuel Oil No. 2 | B21: mmBtu | C21: gallon | D21: =1/0.138 -> 7.246376812 | E21: gallon / mmBtu
A22: Residual Fuel Oil No. 6 | B22: mmBtu | C22: gallon | D22: =1/0.15 -> 6.666666667 | E22: gallon / mmBtu
A23: Kerosene | B23: mmBtu | C23: gallon | D23: =1/0.135 -> 7.407407407 | E23: gallon / mmBtu
A24: Liquefied Petroleum Gases (LPG) | B24: mmBtu | C24: gallon | D24: =1/0.092 -> 10.86956522 | E24: gallon / mmBtu
A25: Petroleum Coke (Solid) | B25: mmBtu | C25: gallon | D25: =1/0.143 -> 6.993006993 | E25: gallon / mmBtu
A26: Landfill Gas | B26: mmBtu | C26: scf | D26: =1/0.000485 -> 2061.85567 | E26: scf / mmBtu
A27: Steam | B27: Mlb (1,000 pounds) | C27: mmBtu | D27: =D28*1000 -> 1.194 | E27: mmBtu / Mlb | F27: EPA, ENERGY STAR, https://www.energystar.gov/buildings/tools-and-resources/portfolio-manager-technical-reference-thermal-conversion-factors
A28: Steam | B28: lb | C28: mmBtu | D28: =1.194/1000 -> 0.001194 | E28: mmBtu / lb
A29: Steam | B29: short ton | C29: mmBtu | D29: =D28*('Unit Conversions'!C12/'Unit Conversions'!B57) -> 0.002388 | E29: mmBtu / short ton

Sheet Emission Factors
A3: Tool Sheet: Emission Factors
A5: All emission factors sourced from EPA's Emission Factors Hub, November 2015.
A6: https://www.epa.gov/climateleadership/center-corporate-climate-leadership-ghg-emission-factors-hub
A7: Stationary Combustion Emission Factors (Used for Steam and Stationary Combustion)
A9: Fuel Type | B9: CO2 Factor (kg / mmBtu) | C9: CH4 Factor (g / mmBtu) | D9: N2O Factor (g / mmBtu) | E9: CO2 Factor (kg / Unit) | F9: CH4 Factor (g / unit) | G9: N2O Factor (g / unit) | H9: Unit
A10: Natural Gas | B10: 53.06 | C10: 1 | D10: 0.1 | E10: 0.05443956 | F10: 0.00103 | G10: 0.0001 | H10: scf
A11: Distillate Fuel Oil No. 2 | B11: 73.96 | C11: 3 | D11: 0.6 | E11: 10.21 | F11: 0.41 | G11: 0.08 | H11: gallons
A12: Residual Fuel Oil No. 6 | B12: 75.1 | C12: 3 | D12: 0.6 | E12: 11.27 | F12: 0.45 | G12: 0.09 | H12: gallons
A13: Kerosene | B13: 75.2 | C13: 3 | D13: 0.6 | E13: 10.15 | F13: 0.41 | G13: 0.08 | H13: gallons
A14: Liquefied Petroleum Gases (LPG) | B14: 61.71 | C14: 3 | D14: 0.6 | E14: 5.67732 | F14: 0.28 | G14: 0.06 | H14: gallons
A15: Anthracite Coal | B15: 103.69 | C15: 11 | D15: 1.6 | E15: 2602 | F15: 276 | G15: 40 | H15: short tons
A16: Bituminous Coal | B16: 93.28 | C16: 11 | D16: 1.6 | E16: 2325 | F16: 274 | G16: 40 | H16: short tons
A17: Sub-bituminous Coal | B17: 97.17 | C17: 11 | D17: 1.6 | E17: 1676 | F17: 190 | G17: 28 | H17: short tons
A18: Lignite Coal | B18: 97.72 | C18: 11 | D18: 1.6 | E18: 1389 | F18: 156 | G18: 23 | H18: short tons
A19: Mixed (Electric Power Sector) | B19: 95.52 | C19: 11 | D19: 1.6
A20: Coal Coke | B20: 113.67 | C20: 11 | D20: 1.6
A21: Petroleum Coke | B21: 102.41 | C21: 3 | D21: 0.6
A22: Wood and Wood Residuals | B22: 0 | C22: 7.2 | D22: 3.6 | E22: 1639.624 | F22: 125.856 | G22: 62.928 | H22: short tons
A23: Landfill Gas | B23: 0 | C23: 3.2 | D23: 0.63 | E23: 0.02525395 | F23: 0.001552 | G23: 0.00030555 | H23: scf
A24: Source:
A25: Federal Register (2009) EPA; 40 CFR Parts 86, 87, 89 et al; Mandatory Reporting of Greenhouse Gases; Final Rule, 30Oct09, 261 pp. Tables C-1 and C-2 at FR pp. 56409-56410. Revised emission factors for selected fuels: Federal Register (2010) EPA; 40 CFR Part 98; Mandatory Reporting of Greenhouse Gases; Final Rule, 17Dec10, 81 pp. With Amendments from Memo: Table of Final 2013 Revisions to the Greenhouse Gas Reporting Rule (PDF) to 40 CFR part 98, subpart C: Table C–1 to Subpart C—Default CO2 Emission Factors and High Heat Values for Various Types of Fuel and Table C–2 to Subpart C—Default CH4 and N2O Emission Factors for Various Types of Fuel.
A29: Mobile Combustion Emission Factors
A30: CO2 Emissions for Road Vehicles
A31: Fuel Type | B31: CO2 Emission Factor (kg CO2 / unit) | C31: Unit
A32: Motor Gasoline | B32: 8.78 | C32: gallon
A33: Diesel Fuel | B33: 10.21 | C33: gallon
A34: Residual Fuel Oil | B34: 11.27 | C34: gallon
A35: Aviation Gasoline | B35: 8.31 | C35: gallon
A36: Kerosene-Type Jet Fuel | B36: 9.75 | C36: gallon
A37: Liquefied Petroleum Gases (LPG) | B37: 5.68 | C37: gallon
A38: Ethanol (100%) | B38: 5.75 | C38: gallon
A39: Biodiesel (100%) | B39: 9.45 | C39: gallon
A40: Liquefied Natural Gas (LNG) | B40: 4.46 | C40: gallon
A41: Compressed Natural Gas (CNG) | B41: 0.05444 | C41: scf
A42: Source:
A43: Federal Register (2009) EPA; 40 CFR Parts 86, 87, 89 et al; Mandatory Reporting of Greenhouse Gases; Final Rule, 30Oct09, 261 pp. Tables C-1 and C-2. Table of Final 2013 Revisions to the Greenhouse Gas Reporting Rule, September 24, 2013.
A44: LNG sourced from: GREET™ Software, GREET1_2013 Model, Argonne National Laboratory. The GREET model provides carbon content and fuel density, which are used to develop the CO2 emission factor.
A45: CH4 and N2O Emissions for Highway Vehicles
A46: Vehicle Type | B46: Year | C46: CH4 Factor (g / mile) | D46: N2O Factor (g / mile) | E46: Notes
A47: Gasoline Passenger Cars | B47: 1984-1993 | C47: 0.0704 | D47: 0.0647
B48: 1994 | C48: 0.0531 | D48: 0.056
B49: 1995 | C49: 0.0358 | D49: 0.0473
B50: 1996 | C50: 0.0272 | D50: 0.0426
B51: 1997 | C51: 0.0268 | D51: 0.0422
B52: 1998 | C52: 0.0249 | D52: 0.0393
B53: 1999 | C53: 0.0216 | D53: 0.0337
B54: 2000 | C54: 0.0178 | D54: 0.0273
B55: 2001 | C55: 0.011 | D55: 0.0158
B56: 2002 | C56: 0.0107 | D56: 0.0153
B57: 2003 | C57: 0.0114 | D57: 0.0135
B58: 2004 | C58: 0.0145 | D58: 0.0083
B59: 2005 | C59: 0.0147 | D59: 0.0079
B60: 2006 | C60: 0.016076 | D60: 0.005652
B61: 2007 | C61: 0.017028 | D61: 0.004056
B62: 2008 | C62: 0.017164 | D62: 0.003828
B63: 2009-present | C63: 0.0173 | D63: 0.0036
A64: Gasoline Light-Duty Trucks | B64: 1987-1993 | C64: 0.0813 | D64: 0.1035
A65: (Vans, Pickup Trucks, SUVs) | B65: 1994 | C65: 0.0646 | D65: 0.0982
B66: 1995 | C66: 0.0517 | D66: 0.0908
B67: 1996 | C67: 0.0452 | D67: 0.0871
B68: 1997 | C68: 0.0452 | D68: 0.0871
B69: 1998 | C69: 0.0391 | D69: 0.0728
B70: 1999 | C70: 0.0321 | D70: 0.0564
B71: 2000 | C71: 0.0346 | D71: 0.0621
B72: 2001 | C72: 0.0151 | D72: 0.0164
B73: 2002 | C73: 0.0178 | D73: 0.0228
B74: 2003 | C74: 0.0155 | D74: 0.0114
B75: 2004 | C75: 0.0152 | D75: 0.0132
B76: 2005 | C76: 0.0157 | D76: 0.0101
B77: 2006 | C77: 0.015925 | D77: 0.008875
B78: 2007 | C78: 0.01609 | D78: 0.007874
B79: 2008 | C79: 0.0163 | D79: 0.0066
B80: 2009-present | C80: 0.0163 | D80: 0.0066 | E80: Assumed these CH4 and N2O factors for ethanol light-duty vehicles
A81: Gasoline Heavy-Duty Vehicles | B81: 1985-1986 | C81: 0.409 | D81: 0.0515
B82: 1987 | C82: 0.3675 | D82: 0.0849
B83: 1988-1989 | C83: 0.3492 | D83: 0.0933
B84: 1990-1995 | C84: 0.3246 | D84: 0.1142
B85: 1996 | C85: 0.1278 | D85: 0.168
B86: 1997 | C86: 0.0924 | D86: 0.1726
B87: 1998 | C87: 0.0641 | D87: 0.1693
B88: 1999 | C88: 0.0578 | D88: 0.1435
B89: 2000 | C89: 0.0493 | D89: 0.1092
B90: 2001 | C90: 0.0528 | D90: 0.1235
B91: 2002 | C91: 0.0546 | D91: 0.1307
B92: 2003 | C92: 0.0533 | D92: 0.124
B93: 2004 | C93: 0.0341 | D93: 0.0285
B94: 2005 | C94: 0.0326 | D94: 0.0177
B95: 2006 | C95: 0.0327 | D95: 0.0171
B96: 2007 | C96: 0.033 | D96: 0.0153
B97: 2008 | C97: 0.0333 | D97: 0.0134
B98: 2009-present | C98: 0.0333 | D98: 0.0134 | E98: Assumed these CH4 and N2O factors for ethanol heavy-duty vehicles and buses
A99: Gasoline Motorcycles | B99: 1960-1995 | C99: 0.0899 | D99: 0.0087
B100: 1996-present | C100: 0.0672 | D100: 0.0069
A101: Source:
A102: EPA (2015) Inventory of U.S. Greenhouse Gas Emissions and Sinks: 1990-2013. All values are calculated from Tables A-102 through A-106.
A104: Vehicle Type | B104: Vehicle Year | C104: CH4 Factor (g / mile) | D104: N2O Factor (g / mile)
A105: Diesel Passenger Cars | B105: 1960-1982 | C105: 0.0006 | D105: 0.0012
B106: 1983-present | C106: 0.0005 | D106: 0.001
A107: Diesel Light-Duty Trucks | B107: 1960-1982 | C107: 0.0011 | D107: 0.0017
B108: 1983-1995 | C108: 0.0009 | D108: 0.0014
B109: 1996-present | C109: 0.001 | D109: 0.0015
A110: Diesel Medium- and Heavy-Duty Vehicles | B110: 1960-present | C110: 0.0051 | D110: 0.0048
A111: CNG Light-Duty Vehicles | C111: 0.737 | D111: 0.05
A112: CNG Heavy-Duty Vehicles | C112: 1.966 | D112: 0.175
A113: CNG Buses | C113: 1.966 | D113: 0.175
A114: LPG Light-Duty Vehicles | C114: 0.037 | D114: 0.067
A115: LPG Medium- and Heavy-Duty Vehicles | C115: 0.066 | D115: 0.175
A116: LNG Medium- and Heavy-Duty Vehicles | C116: 1.966 | D116: 0.175
A117: Ethanol Light-Duty Vehicles | C117: 0.055 | D117: 0.067
A118: Ethanol Medium- and Heavy-Duty Vehicles | C118: 0.197 | D118: 0.175
A119: Ethanol Buses | C119: 0.197 | D119: 0.175
A120: Biodiesel Light-Duty Vehicles | C120: 0.0005 | D120: 0.001
A121: Biodiesel Medium- and Heavy-Duty Vehicles | C121: 0.005 | D121: 0.005
A122: Biodiesel Buses | C122: 0.005 | D122: 0.005
A123: Source:
A124: EPA (2015) Inventory of U.S. Greenhouse Gas Emissions and Sinks: 1990-2013. All values are calculated from Tables A-105 through A-107.
A126: CH4 and N2O Emissions for Non-Road Vehicles
A127: Vehicle Type | B127: CH4 Factor (g / gallon) | C127: N2O Factor (g / gallon) | D127: Notes
A128: LPG Non-Road Vehicles | B128: 0.5 | C128: 0.22 | D128: equal to gasoline construction equipment (Table A-6)
A129: Residual Oil Ships and Boats | B129: 0.11 | C129: 0.57
A130: Diesel Ships and Boats | B130: 0.06 | C130: 0.45
A131: Gasoline Ships and Boats | B131: 0.64 | C131: 0.22
A132: Diesel Locomotives | B132: 0.8 | C132: 0.26
A133: Gasoline Agricultural Equip. | B133: 1.26 | C133: 0.22
A134: Diesel Agricultural Equip. | B134: 1.44 | C134: 0.26
A135: Gasoline Construction Equip. | B135: 0.5 | C135: 0.22
A136: Diesel Construction Equip. | B136: 0.57 | C136: 0.26
A137: Jet Fuel Aircraft | B137: 0 | C137: 0.3
A138: Aviation Gasoline Aircraft | B138: 7.06 | C138: 0.11
A139: Biodiesel Non-Road Vehicles | B139: 0.57 | C139: 0.26 | D139: equal to diesel (Table A-6)
A140: Other Diesel Non-Road Vehicles | B140: 0.57 | C140: 0.26
A141: Other Gasoline Non-Road Vehicles | B141: 0.5 | C141: 0.22
A142: Source:
A143: EPA (2015) Inventory of U.S. Greenhouse Gas Emissions and Sinks: 1990-2013. All values are calculated from Table A-108.
A144: Note: LPG non-road vehicles assumed equal to other gasoline sources. Biodiesel vehicles assumed equal to other diesel sources.
A146: Refrigerants and Global Warming Potentials (GWPs)
A147: Gas | B147: GWP
A148: CO2 | B148: 1
A149: CH4 | B149: 25
A150: N2O | B150: 298
A151: HFC-23 | B151: 14800
A152: HFC-32 | B152: 675
A153: HFC-41 | B153: 92
A154: HFC-125 | B154: 3500
A155: HFC-134 | B155: 1100
A156: HFC-134a | B156: 1430
A157: HFC-143 | B157: 353
A158: HFC-143a | B158: 4470 | IV158: =SUM(B158:IU158) -> 4470
A159: HFC-152 | B159: 53
A160: HFC-152a | B160: 124
A161: HFC-161 | B161: 12
A162: HFC-227ea | B162: 3220
A163: HFC-236cb | B163: 1340
A164: HFC-236ea | B164: 1370
A165: HFC-236fa | B165: 9810
A166: HFC-245ca | B166: 693
A167: HFC-245fa | B167: 1030
A168: HFC-365mfc | B168: 794
A169: HFC-43-10mee | B169: 1640
A170: SF6 | B170: 22800
A171: NF3 | B171: 17200
A172: CF4 | B172: 7390
A173: C2F6 | B173: 12200
A174: C3F8 | B174: 8830
A175: c-C4F8 | B175: 10300
A176: C4F10 | B176: 8860
A177: C5F12 | B177: 9160
A178: C6F14 | B178: 9300
A179: C10F18 | B179: >7,500
B180: Blended Refrigerants (ASHRAE #)
A181: ASHRAE # | B181: Blend GWP HFC/PFC | C181: Blend Make-up
A182: R-401A | B182: 16 | C182: 53% HCFC-22 , 34% HCFC-124 , 13% HFC-152a
A183: R-401B | B183: 14 | C183: 61% HCFC-22 , 28% HCFC-124 , 11% HFC-152a
A184: R-401C | B184: 19 | C184: 33% HCFC-22 , 52% HCFC-124 , 15% HFC-152a
A185: R-402A | B185: 2100 | C185: 38% HCFC-22 , 6% HFC-125 , 2% propane
A186: R-402B | B186: 1330 | C186: 6% HCFC-22 , 38% HFC-125 , 2% propane
A187: R-403B | B187: 3444 | C187: 56% HCFC-22 , 39% PFC-218 , 5% propane
A188: R-404A | B188: 3922 | C188: 44% HFC-125 , 4% HFC-134a , 52% HFC 143a
A189: R-406A | B189: 0 | C189: 55% HCFC-22 , 41% HCFC-142b , 4% isobutane
A190: R-407A | B190: 2107 | C190: 20% HFC-32 , 40% HFC-125 , 40% HFC-134a
A191: R-407B | B191: 2804 | C191: 10% HFC-32 , 70% HFC-125 , 20% HFC-134a
A192: R-407C | B192: 1774 | C192: 23% HFC-32 , 25% HFC-125 , 52% HFC-134a
A193: R-407D | B193: 1627 | C193: 15% HFC-32 , 15% HFC-125 , 70% HFC-134a
A194: R-407E | B194: 1552 | C194: 25% HFC-32 , 15% HFC-125 , 60% HFC-134a
A195: R-408A | B195: 2301 | C195: 47% HCFC-22 , 7% HFC-125 , 46% HFC 143a
A196: R-409A | B196: 0 | C196: 60% HCFC-22 , 25% HCFC-124 , 15% HCFC-142b
A197: R-410A | B197: 2088 | C197: 50% HFC-32 , 50% HFC-125
A198: R-410B | B198: 2229 | C198: 45% HFC-32 , 55% HFC-125
A199: R-411A | B199: 14 | C199: 87.5% HCFC-22 , 11 HFC-152a , 1.5% propylene
A200: R-411B | B200: 4 | C200: 94% HCFC-22 , 3% HFC-152a , 3% propylene
A201: R-413A | B201: 2053 | C201: 88% HFC-134a , 9% PFC-218 , 3% isobutane
A202: R-414A | B202: 0 | C202: 51% HCFC-22 , 28.5% HCFC-124 , 16.5% HCFC-142b
A203: R-414B | B203: 0 | C203: 5% HCFC-22 , 39% HCFC-124 , 9.5% HCFC-142b
A204: R-417A | B204: 2346 | C204: 46.6% HFC-125 , 5% HFC-134a , 3.4% butane
A205: R-422A | B205: 3143 | C205: 85.1% HFC-125 , 11.5% HFC-134a , 3.4% isobutane
A206: R-422D | B206: 2729 | C206: 65.1% HFC-125 , 31.5% HFC-134a , 3.4% isobutane
A207: R-423A | B207: 2280 | C207: 47.5% HFC-227ea , 52.5% HFC-134a ,
A208: R-424A | B208: 2440 | C208: 50.5% HFC-125, 47% HFC-134a, 2.5% butane/pentane
A209: R-426A | B209: 1508 | C209: 5.1% HFC-125, 93% HFC-134a, 1.9% butane/pentane
A210: R-428A | B210: 3607 | C210: 77.5% HFC-125 , 2% HFC-143a , 1.9% isobutane
... 74 more rows

Sheet DropDown (hidden)
A1: Tab Navigation | B1: Help Tab Navigation | C1: Fuel Combusted | D1: Vehicle Type | E1: TYPE OF REFRIGERATION EQUIPMENT | F1: CHOICES FOR REFRIGERANT | G1: Fire Suppression Equipment | H1: Fire Suppression Gas | I1: GHGs | J1: Electricity eGRID Subregions | K1: Steam Fuel Type | L1: Travel by Vehicle Miles | M1: Travel by Passenger Miles | N1: Travel by Air | O1: Product Transport Vehicle Type | P1: Product Transport Type | Q1: Fuel | R1: Fuel Type | S1: Gas | T1: Liquid | U1: Solid
A2: Stationary Combustion | B2: Help - Data Management | C2: Natural Gas | D2: Aviation Gasoline Aircraft | E2: Domestic Refrigeration | F2: CO2 | G2: Fixed | H2: CO2 | I2: CO2 | J2: ='Emission Factors'!A229 -> AKGD (ASCC Alaska Grid) | K2: Natural Gas | L2: Passenger Car | M2: Intercity Rail (i.e. Amtrak) | N2: Short Haul (< 300 miles) | O2: Medium- and Heavy-duty Truck | P2: Medium- and Heavy-Duty Truck | Q2: Natural Gas | R2: Gas | S2: SCF | T2: Gallons | U2: Short Ton
A3: Mobile Sources | B3: Help - Stationary Combustion | C3: Distillate Fuel Oil No. 2 | D3: Biodiesel Buses | E3: Stand-Alone Commercial | F3: HFC-23 | G3: Portable | H3: HFC-23 | I3: CH4 | J3: ='Emission Factors'!A230 -> AKMS (ASCC Miscellaneous) | K3: Distillate Fuel Oil No. 2 | L3: Light-Duty Truck | M3: Commuter Rail | N3: Medium Haul (>= 300 miles, < 2300 miles) | O3: Light-Duty Truck | P3: Rail | Q3: Distillate Fuel Oil No. 2 | R3: Liquid | S3: Therm | T3: MMBtu | U3: MMBtu
A4: Refrigeration and AC | B4: Help - Mobile Sources | C4: Residual Fuel Oil No. 6 | D4: Biodiesel Light-Duty Vehicles | E4: Medium/Large Commercial | F4: HFC-32 | H4: HFC-125 | I4: N2O | J4: ='Emission Factors'!A231 -> AZNM (WECC Southwest) | K4: Residual Fuel Oil No. 6 | L4: Motorcycle | M4: Transit Rail (i.e. Subway, Tram) | N4: Long Haul (>= 2300 miles) | O4: Passenger Car | P4: Aircraft | Q4: Residual Fuel Oil No. 6 | R4: Liquid | S4: MMBtu
A5: Fire Suppression | B5: Help - Refrigeration and AC | C5: Kerosene | D5: Biodiesel Medium- and Heavy-Duty Vehicles | E5: Transport Refrigeration | F5: HFC-125 | H5: HFC-134a | I5: SF6 | J5: ='Emission Factors'!A232 -> CAMX (WECC California) | K5: Kerosene | M5: Bus | P5: Waterborne Craft | Q5: Kerosene | R5: Liquid
A6: Purchased Gases | B6: Help - Fire Suppression | C6: Liquefied Petroleum Gases (LPG) | D6: Biodiesel Non-Road Vehicles | E6: Industrial Refrigeration | F6: HFC-134a | H6: HFC-227ea | I6: NF3 | J6: ='Emission Factors'!A233 -> ERCT (ERCOT All) | K6: Liquefied Petroleum Gases (LPG) | Q6: Liquefied Petroleum Gases (LPG) | R6: Liquid
A7: Waste Gases | B7: Help - Purchased Gases | C7: Anthracite Coal | D7: CNG Buses | E7: Chillers | F7: HFC-143a | H7: HFC-236fa | I7: HFC-23 | J7: ='Emission Factors'!A234 -> FRCC (FRCC All) | K7: Anthracite Coal | Q7: Anthracite Coal | R7: Solid
A8: Electricity | B8: Help - Waste Gases | C8: Bituminous Coal | D8: CNG Heavy-Duty Vehicles | E8: Residential/Commercial A/C | F8: HFC-152a | H8: CF4 | I8: HFC-32 | J8: ='Emission Factors'!A235 -> HIMS (HICC Miscellaneous) | K8: Bituminous Coal | Q8: Bituminous Coal | R8: Solid
A9: Steam | B9: Help - Electricity | C9: Sub-bituminous Coal | D9: CNG Light-Duty Vehicles | E9: Car A/C Units | F9: HFC-236fa | H9: C4F10 | I9: HFC-125 | J9: ='Emission Factors'!A236 -> HIOA (HICC Oahu) | K9: Sub-bituminous Coal | Q9: Sub-bituminous Coal | R9: Solid
A10: Business Travel | B10: Help - Steam | C10: Lignite Coal | D10: Diesel Agricultural Equip. | E10: Light-Duty Truck A/C Units | F10: CF4 | I10: HFC-134a | J10: ='Emission Factors'!A237 -> MROE (MRO East) | K10: Lignite Coal | Q10: Lignite Coal | R10: Solid
A11: Commuting | B11: Help - Business Travel | C11: Wood and Wood Residuals | D11: Diesel Construction Equip. | F11: C2F6 | I11: HFC-143a | J11: ='Emission Factors'!A238 -> MROW (MRO West) | K11: Mixed (Electric Power Sector) | Q11: Wood and Wood Residuals | R11: Solid
A12: Product Transport | B12: Help - Commuting | C12: Landfill Gas | D12: Diesel Light-Duty Trucks | F12: SF6 | I12: HFC-152a | J12: ='Emission Factors'!A239 -> NEWE (NPCC New England) | K12: Coal Coke | Q12: Landfill Gas | R12: Gas
A13: RECs-Green Power | B13: Help - Product Transport | D13: Diesel Locomotives | F13: R-401A | I13: HFC-236fa | J13: ='Emission Factors'!A240 -> NWPP (WECC Northwest) | K13: Petroleum Coke
A14: Offsets | B14: Help - Market-Based Method | D14: Diesel Medium- and Heavy-Duty Vehicles | F14: R-401B | I14: CF4 | J14: ='Emission Factors'!A241 -> NYCW (NPCC NYC/Westchester) | K14: Wood and Wood Residuals
B15: Help - Offsets | D15: Diesel Passenger Cars | F15: R-401C | I15: C2F6 | J15: ='Emission Factors'!A242 -> NYLI (NPCC Long Island) | K15: Landfill Gas
D16: Diesel Ships and Boats | F16: R-402A | I16: C3F8 | J16: ='Emission Factors'!A243 -> NYUP (NPCC Upstate NY)
D17: Ethanol Buses | F17: R-402B | I17: C4F10 | J17: ='Emission Factors'!A244 -> RFCE (RFC East)
D18: Ethanol Light-Duty Vehicles | F18: R-403B | I18: c-C4F8 | J18: ='Emission Factors'!A245 -> RFCM (RFC Michigan)
D19: Ethanol Medium- and Heavy-Duty Vehicles | F19: R-404A | I19: C5F12 | J19: ='Emission Factors'!A246 -> RFCW (RFC West)
D20: Gasoline Agricultural Equip. | F20: R-406A | I20: C6F14 | J20: ='Emission Factors'!A247 -> RMPA (WECC Rockies)
D21: Gasoline Construction Equip. | F21: R-407A | I21: R-401A | J21: ='Emission Factors'!A248 -> SPNO (SPP North)
D22: Gasoline Heavy-Duty Vehicles | F22: R-407B | I22: R-401B | J22: ='Emission Factors'!A249 -> SPSO (SPP South)
D23: Gasoline Light-Duty Trucks | F23: R-407C | I23: R-401C | J23: ='Emission Factors'!A250 -> SRMV (SERC Mississippi Valley)
D24: Gasoline Motorcycles | F24: R-407D | I24: R-402A | J24: ='Emission Factors'!A251 -> SRMW (SERC Midwest)
D25: Gasoline Passenger Cars | F25: R-407E | I25: R-402B | J25: ='Emission Factors'!A252 -> SRSO (SERC South)
D26: Gasoline Ships and Boats | F26: R-408A | I26: R-403B | J26: ='Emission Factors'!A253 -> SRTV (SERC Tennessee Valley)
D27: Jet Fuel Aircraft | F27: R-409A | I27: R-404A | J27: ='Emission Factors'!A254 -> SRVC (SERC Virginia/Carolina)
D28: LNG Medium- and Heavy-Duty Vehicles | F28: R-410A | I28: R-406A
D29: LPG Light-Duty Vehicles | F29: R-410B | I29: R-407A
D30: LPG Medium- and Heavy-Duty Vehicles | F30: R-411A | I30: R-407B
D31: LPG Non-Road Vehicles | F31: R-411B | I31: R-407C
D32: Other Diesel Non-Road Vehicles | F32: R-413A | I32: R-407D
D33: Other Gasoline Non-Road Vehicles | F33: R-414A | I33: R-407E
D34: Residual Oil Ships and Boats | F34: R-414B | I34: R-408A
F35: R-417A | I35: R-409A
F36: R-422A | I36: R-410A
F37: R-422D | I37: R-410B
F38: R-423A | I38: R-411A
F39: R-424A | I39: R-411B
F40: R-426A | I40: R-413A
F41: R-428A | I41: R-414A
F42: R-434A | I42: R-414B
F43: R-500 | I43: R-417A
F44: R-502 | I44: R-422A
F45: R-504 | I45: R-422D
F46: R-507 | I46: R-423A
F47: R-508A | I47: R-424A
F48: R-508B | I48: R-426A
I49: R-428A
I50: R-434A
I51: R-500
I52: R-502
I53: R-504
I54: R-507
I55: R-508A
I56: R-508B

Sheet Help - Data Management
C2: Stationary Combustion
A4: Data Management - HELP SHEET
A6: On this sheet you will find general suggestions regarding GHG inventory data management.
A8: DATA MANAGEMENT
A9: This Calculator provides the calculations to quantify your organization's GHG emissions based on annual totals for activity data, which are entered in the ORANGE data entry cells in this workbook. It is good practice to use a spreadsheet or database to track more detailed activity data, such as monthly energy consumption, and aggregate that detailed data into annual totals for entry into the Calculator. This approach provides an "audit trail" that retraces the steps completed to arrive at the annual usage numbers you enter into the Calculator. ENERGY STAR's Portfolio Manager is one database option if your business is already using this tool. (More information on Portfolio Manager is available in the Guide to GHG Management). The bullets below suggest the type of data you may want to store in the data management spreadsheet or database.
B11: A List of Facilities and Attributes | E11: Purchased Gas Data
B12: * Facility Name or Site ID | E12: * Types of Gas Purchased
B13: * Address (including zip code) | E13: * Amount of Gas Purchased
B14: * Floor area (sq ft) | E14: Waste Gas Data
B15: * Number of Employees | E15: * Type and Composition of Waste Gases Combusted
B16: * Open and Close Date of Facility | E16: * Amount of each Waste Gas Combusted
B17: * Type of Facility | E17: Steam Data
B18: Electricity Data | E18: * Monthly Consumption Data by Meter or Facility
B19: * Monthly Consumption Data by Meter or Facility | E19: * Monthly Cost Data by Meter or Facility
B20: * Monthly Cost Data by Meter or Facility | E20: * Steam Provider Emission Factors
B21: * Record of renewable energy purchased through contractual instruments | E21: * Fuel Type Used to Generate Steam
B22: Stationary Fuel Data (for each Fuel Type) | E22: * Boiler Efficiency
B23: * Monthly Consumption Data by Meter or Facility | E23: Business Travel
B24: * Monthly Cost Data by Meter or Facility | E24: * Mode of Transportation
B25: Mobile Fuel Data | E25: * Mileage by Trip (i.e., for each leg of transport)
B26: * List of Vehicles (Year, Make, Model, Fuel Type) | E26: Commuting
B27: * Fuel Consumption by Vehicle | E27: * Mode of Transportation per Employee
B28: * Fuel Cost by Vehicle | E28: * Mileage by Trip (i.e., for each leg of transport)
B29: * Miles Traveled by Vehicle | E29: Product Transport
B30: Refrigeration and AC Data | E30: * Mode of Transportation for each Shipment
B31: * Inventory of Equipment by Facility | E31: * Weight of Product Transported for each Shipment
B32: * Refrigerant Capacity of Equipment | E32: * Distance Product Transported for each Shipment
B33: * Refrigerant Purchase, Inventory, and Disposal Data
B34: Fire Suppression Data
B35: * Inventory of Equipment by Facility
B36: * Fire Suppressant Capacity of Equipment
B37: * Fire Suppressant Purchase, Inventory, and Disposal Data
B38: Disposal Data
A40: QUALITY ASSURANCE/QUALITY CONTROL (QA/QC) - Suggested Checks
A41: The accuracy of a GHG inventory depends on the accuracy of the activity data. Here are a few quick checks to make sure your data are realistic. If any of these checks lead to questions, it is best to review the data month by month to look for data points that are significantly higher or lower than other points. Checking data sources such as utility bills can confirm data entry accuracy.
B43: Benchmarks
B44: Compare your energy consumption data against typical benchmarks.
B45: 1. Compare your energy consumption data per square foot of floor area against the averages by building type and region in the tables below. See below for building type definitions.
B46: 2. Does any facility look significantly higher or lower than these averages? If so, can the difference be explained?
B48: Electricity Intensity | C48: kWh electricity / sq ft / year
B49: Principal Building Activity | C49: Northeast | D49: Midwest | E49: South | F49: West
B50: Education | C50: 8.7 | D50: 10.3 | E50: 12.6 | F50: 10
B51: Food sales | C51: 45 | D51: 50.5 | E51: 56.2 | F51: 42.7
B52: Food service | C52: 39.7 | D52: 43.1 | E52: 49.7 | F52: 41.1
B53: Health care | C53: 22 | D53: 25.1 | E53: 29.5 | F53: 24.6
B54: Inpatient | C54: 26.3 | D54: 28.9 | E54: 34.3 | F54: 32.5
B55: Outpatient | C55: 17.6 | D55: 20.1 | E55: 21.7 | F55: 14.3
B56: Lodging | C56: 14 | D56: 15.4 | E56: 16.6 | F56: 14.1
B57: Mercantile | C57: 16.3 | D57: 17.5 | E57: 19.7 | F57: 17.6
B58: Retail (other than mall) | C58: 12.8 | D58: 14.1 | E58: 16.3 | F58: 15.8
B59: Enclosed and strip malls | C59: 19.9 | D59: 21.4 | E59: 22.5 | F59: 19.1
B60: Office | C60: 17.1 | D60: 15.3 | E60: 16 | F60: 14.9
B61: Public assembly | C61: 14.1 | D61: 13.2 | E61: 16.3 | F61: 13.2
B62: Public order and safety | C62: 15.1 | D62: 10.3 | E62: 18.3 | F62: insufficient data
B63: Religious worship | C63: 4.5 | D63: 4.5 | E63: 6.1 | F63: 4.7
B64: Service | C64: 6.6 | D64: 7.3 | E64: 9.8 | F64: 8.8
B65: Warehouse and storage | C65: 4.9 | D65: 6.6 | E65: 8.4 | F65: 4.8
B66: Other | C66: 43.2 | D66: 20.2 | E66: 32 | F66: 20.3
B67: Vacant | C67: insufficient data | D67: 5.3 | E67: 4 | F67: 5.6
B69: Natural Gas Intensity | C69: standard cubic feet (scf) natural gas / sq ft / year
B70: Principal Building Activity | C70: Northeast | D70: Midwest | E70: South | F70: West
B71: Education | C71: 46.6 | D71: 38.8 | E71: 16.5 | F71: 27.9
B72: Food sales | C72: insufficient data | D72: insufficient data | E72: 59.1 | F72: insufficient data
B73: Food service | C73: 130.7 | D73: 162.4 | E73: 178 | F73: 139.7
B74: Health care | C74: 68.8 | D74: 85.7 | E74: 77 | F74: 86
B75: Inpatient | C75: 107.4 | D75: 111.7 | E75: 88.3 | F75: 109
B76: Outpatient | C76: 33.1 | D76: 48 | E76: 24.8 | F76: 45.2
B77: Lodging | C77: 43.9 | D77: 49.3 | E77: 33.1 | F77: 56.3
B78: Mercantile | C78: 40.4 | D78: 43 | E78: 26.1 | F78: 31.4
B79: Retail (other than mall) | C79: 25.1 | D79: 33.9 | E79: 15.1 | F79: 15.2
B80: Enclosed and strip malls | C80: 50.3 | D80: 50.9 | E80: 31.2 | F80: 44.4
B81: Office | C81: 34.3 | D81: 33.2 | E81: 17.2 | F81: 22.2
B82: Public assembly | C82: 42.6 | D82: 40.5 | E82: 26 | F82: 26.7
B83: Public order and safety | C83: insufficient data | D83: insufficient data | E83: 23.4 | F83: insufficient data
B84: Religious worship | C84: 25.8 | D84: 38.9 | E84: 22.2 | F84: 29.1
B85: Service | C85: 64.8 | D85: 38.1 | E85: 44.6 | F85: 35.3
B86: Warehouse and storage | C86: 27.6 | D86: 20.3 | E86: 11.3 | F86: 25.5
B87: Other | C87: insufficient data | D87: insufficient data | E87: 41.6 | F87: 74
B88: Vacant | C88: insufficient data | D88: insufficient data | E88: insufficient data | F88: insufficient data
B90: Fuel Oil Intensity | C90: gallons fuel oil / sq ft / year
B91: Principal Building Activity | C91: Northeast | D91: Midwest | E91: South | F91: West
B92: Education | C92: 0.15 | D92: 0.02 | E92: 0.09 | F92: insufficient data
B93: Health care | C93: 0.15 | D93: 0.02 | E93: 0.02 | F93: 0.02
B94: Office | C94: 0.06 | D94: 0.01 | E94: 0.01 | F94: 0.01
B95: All others | C95: 0.11 | D95: 0.04 | E95: 0.02 | F95: 0.02
B96: See table at bottom of sheet for building type descriptions.
B97: Source:
B98: 1. Source- EIA's 2012 Commercial Buildings Energy Consumption Survey, Table C15 (Electricity), Table C25 ( Natural Gas), Table C35 (Fuel Oil). http://www.eia.gov/consumption/commercial/data/2012/index.cfm?view=consumption#c23-c32
B99: 2. Building Type Definitions Source- http://www.eia.gov/consumption/commercial/building-type-definitions.cfm
B101: Calculated Unit Costs
B102: Calculated unit costs that are out of expected ranges can indicate data entry errors.
B103: 1. Use the cost and consumption data entered into your data management file to calculate the cost per unit of consumption for each month and each emissions source.
B104: 2. Is the unit cost within expected ranges? Is it fairly constant month to month? Keep in mind that very low consumption (such as with heating fuel during the summer) can skew the unit cost due to fixed monthly fees.
B105: 3. If the calculated unit cost is not reasonable, is there an error in either the consumption data or the cost data?
B107: Year Over Year Comparison
B108: Compare usage data from one year to the next.
B109: 1. Is there a significant change in consumption data year over year? If so, hone in on the facilities causing the change.
B110: 2. If there is a significant change, can it be explained?
B111: 3. If this amount is not reasonable, is there an error in either the consumption data or the data entry? Check monthly data by facility.
B113: Building Types
B115: Building Type | C115: Description | F115: Examples
B116: Education | C116: Buildings used for academic or technical classroom instruction, such as elementary, middle, or high schools, and classroom buildings on college or university campuses. Buildings on education campuses for which the main use is not classroom are included in the category relating to their use. For example, administration buildings are part of "Office," dormitories are "Lodging," and libraries are "Public Assembly." | F116: elementary or middle school, high school, college or university, preschool or daycare, adult education, career or vocational training, religious education
B117: Food Sales | C117: Buildings used for retail or wholesale of food. | F117: grocery store or food market, gas station with a convenience store, convenience store,
B118: Food Service | C118: Buildings used for preparation and sale of food and beverages for consumption. | F118: fast food, restaurant or cafeteria, bar, catering service or reception hall, coffee, bagel, or doughnut shop, ice cream or frozen yogurt shop
B119: Health Care (Inpatient) | C119: Buildings used as diagnostic and treatment facilities for inpatient care. | F119: hospital, inpatient rehabilitation
B120: Health Care (Outpatient) | C120: Buildings used as diagnostic and treatment facilities for outpatient care. Medical offices are included here if they use any type of diagnostic medical equipment (if they do not, they are categorized as an office building). | F120: medical office (see previous column), clinic or other outpatient health care, outpatient rehabilitation, veterinarian
B121: Lodging | C121: Buildings used to offer multiple accommodations for short-term or long-term residents, including skilled nursing and other residential care buildings. | F121: motel or inn, hotel, dormitory, fraternity, or sorority, retirement home, nursing home, assisted living, or other residential care, convent or monastery, shelter, orphanage, or children's home, halfway house
B122: Mercantile (Retail Other Than Mall) | C122: Buildings used for the sale and display of goods other than food. | F122: retail store, beer, wine, or liquor store, rental center, dealership or showroom for vehicles or boats, studio/gallery
B123: Mercantile (Enclosed and Strip Malls) | C123: Shopping malls comprised of multiple connected establishments. | F123: enclosed mall, strip shopping center
B124: Office | C124: Buildings used for general office space, professional office, or administrative offices. Medical offices are included here if they do not use any type of diagnostic medical equipment (if they do, they are categorized as an outpatient health care building). | F124: administrative or professional office, government office, mixed-use office, bank or other financial institution, medical office (see previous column), sales office, contractor's office (e.g. construction, plumbing, HVAC), non-profit or social services, city hall or city center, religious office, call center
B125: Public Assembly | C125: Buildings in which people gather for social or recreational activities, whether in private or non-private meeting halls. | F125: social or meeting (e.g. community center, lodge, meeting hall, convention center,senior center), recreation (e.g. gymnasium, health club, bowling alley, ice rink, field house, indoor racquet sports), entertainment or culture (e.g. museum, theater, cinema, sports arena, casino, night club), library, funeral home, student activities center, armory, exhibition hall, broadcasting studio, transportation terminal
B126: Public Order and Safety | C126: Buildings used for the preservation of law and order or public safety. | F126: police station, fire station, jail, reformatory, or penitentiary, courthouse or probation office
B127: Religious Worship | C127: Buildings in which people gather for religious activities, (such as chapels, churches, mosques, synagogues, and temples). | F127: No subcategories collected
B128: Service | C128: Buildings in which some type of service is provided, other than food service or retail sales of goods | F128: vehicle service or vehicle repair shop, vehicle storage/ maintenance (car barn), repair shop, dry cleaner or laundromat, post office or postal center, car wash, gas station, photo processing shop, beauty parlor or barber shop, tanning salon, copy center or printing shop, kennel
B129: Warehouse and Storage | C129: Buildings used to store goods, manufactured products, merchandise, raw materials, or personal belongings (such as self-storage). | F129: refrigerated warehouse, non-refrigerated warehouse, distribution or shipping center
B130: Other | C130: Buildings that are industrial or agricultural with some retail space; buildings having several different commercial activities that, together, comprise 50 percent or more of the floorspace, but whose largest single activity is agricultural, industrial/ manufacturing, or residential; and all other miscellaneous buildings that do not fit into any other category. | F130: airplane hangar, crematorium, laboratory, telephone switching, agricultural with some retail space, manufacturing or industrial with some retail space, data center or server farm
B131: Vacant | C131: Buildings in which more floorspace was vacant than was used for any single commercial activity at the time of interview. Therefore, a vacant building may have some occupied floorspace. | F131: No subcategories collected, but a question was asked to determine whether the building was completely vacant.

Sheet Help - Stationary Combustion
A3: Scope 1 Emissions from Stationary Combustion Sources - HELP SHEET
A5: DEFINITION
A6: Combustion emission sources are stationary sources that combust fuel, like a natural gas hot water heater for an office building or an oil burning boiler. Emissions result from the actual combustion of the fuels to produce useful products, like heat and hot water.
A8: COLLECT
A9: To account for these sources, collect information about the type of fuel used and the quantity of fuel combusted at each facility. Sources of data can vary, but the data are often provided by the utility organization that supplies the fuel to the organization. A monthly natural gas bill, for example, can be used to provide information regarding how much natural gas was purchased for the previous billing cycle.
A10: Data Collection Checklist (for all facilities)
A11: - | B11: Type of fuel consumed
A12: - | B12: Amount of fuel consumed
A14: QUANTIFY
A15: After the data has been collected, it should be entered into the appropriate orange colored boxes of the Calculator section titled “Stationary Combustion.” The fuel type can be selected from the form. After the data are entered into the Calculator, the CO2 equivalent emissions are displayed in the blue colored box.
A18: Items to Note
A19: - | B19: Use the heat content sheet to convert units provided on the invoice into the units the Calculator requires.
A20: - | B20: If you are one of many tenants in a facility and you do not have the actual amount of fuel used in your space, you may estimate your fuel usage by multiplying the fuel usage of the entire facility by the percentage of the floor area that your organization occupies.
A21: - | B21: Companies with home offices can optionally include these spaces in their inventory if the energy use associated with business activities can be reasonably estimated.
A22: - | B22: The Energy Information Administration conducts a Commercial Building Energy Consumption Survey and provides average energy consumption by building type per square foot. Use the numbers below to compare against your data or to estimate for natural gas if no data are available. For example, if you have a 1,000 sq ft office suite in the Northeast multiply by 34.3 to get an estimation of 34,300 scf natural gas for a year.
B24: Natural Gas Intensity | C24: standard cubic feet (scf) natural gas / sq ft / year
B25: Principal Building Activity | C25: Northeast | D25: Midwest | E25: South | F25: West
B26: Education | C26: 46.6 | D26: 38.8 | E26: 16.5 | F26: 27.9
B27: Food sales | C27: insufficient data | D27: insufficient data | E27: 59.1 | F27: insufficient data
B28: Food service | C28: 130.7 | D28: 162.4 | E28: 178 | F28: 139.7
B29: Health care | C29: 68.8 | D29: 85.7 | E29: 77 | F29: 86
B30: Inpatient | C30: 107.4 | D30: 111.7 | E30: 88.3 | F30: 109
B31: Outpatient | C31: 33.1 | D31: 48 | E31: 24.8 | F31: 45.2
B32: Lodging | C32: 43.9 | D32: 49.3 | E32: 33.1 | F32: 56.3
B33: Mercantile | C33: 40.4 | D33: 43 | E33: 26.1 | F33: 31.4
B34: Retail (other than mall) | C34: 25.1 | D34: 33.9 | E34: 15.1 | F34: 15.2
B35: Enclosed and strip malls | C35: 50.3 | D35: 50.9 | E35: 31.2 | F35: 44.4
B36: Office | C36: 34.3 | D36: 33.2 | E36: 17.2 | F36: 22.2
B37: Public assembly | C37: 42.6 | D37: 40.5 | E37: 26 | F37: 26.7
B38: Public order and safety | C38: insufficient data | D38: insufficient data | E38: 23.4 | F38: insufficient data
B39: Religious worship | C39: 25.8 | D39: 38.9 | E39: 22.2 | F39: 29.1
B40: Service | C40: 64.8 | D40: 38.1 | E40: 44.6 | F40: 35.3
B41: Warehouse and storage | C41: 27.6 | D41: 20.3 | E41: 11.3 | F41: 25.5
B42: Other | C42: insufficient data | D42: insufficient data | E42: 41.6 | F42: 74
B43: Vacant | C43: insufficient data | D43: insufficient data | E43: insufficient data | F43: insufficient data
B44: Source: EIA's Commercial Buildings Energy Consumption Survey (CBECS) 2012, Released May 2016. Table C25: Natural gas consumption and conditional energy intensity by Census region
B45: http://www.eia.gov/consumption/commercial/data/2012/index.cfm?view=consumption#c23-c32

Sheet Help - Mobile Sources
A3: Scope 1 Emissions from Mobile Sources - HELP SHEET
A5: DEFINITION
A6: Mobile sources, like owned or leased cars and heavy duty vehicles generate emissions by burning fuel. The fuel usage for any vehicle that is under the organization's operational control should be reported here as scope 1 emissions.
A8: COLLECT
A9: Determine the types of vehicles, types and amount of fuel, and the miles driven for each vehicle or vehicle type. Data sources vary but fuel usage is often determined from fuel receipts or purchase records and provided in gallons, and mileage from vehicle records. Mileage or fuel use can also be estimated based on vehicle fuel economy from the manufacturer or www.fueleconomy.gov if the other data sources are not readily available.
A10: www.fueleconomy.gov
A12: Data Collection Checklist (for all vehicles)
A13: - | B13: Type and year of vehicle
A14: - | B14: Amount of fuel consumed for the inventory reporting period
A15: - | B15: Total miles driven for the inventory reporting period
A17: QUANTIFY
A18: Enter the data into the appropriate orange colored boxes of the Calculator section titled “Mobile Sources.” If the organization owns or leases biofuel or ethanol vehicles, the percentage of biologically-based fuel should be entered into the boxes provided; default values are available if needed. Once the data are entered into the Calculator, the CO2 equivalent emissions are calculated and summarized in the blue colored box. Biomass CO2 emissions are calculated and summarized in the green colored box, and are typically not summed into the organization’s total GHG emissions because they are considered to be a net zero emission source.
B19: Vehicle Classification Guidelines
B20: Pickups, Vans, and SUVs should be classified as "Light Trucks"
B21: Trucks weighing more than 8,500 lb should be classified as "Heavy- Duty Trucks"
B22: Non-highway vehicles should be classified as "Construction Equip."
A24: Items to Note
A25: - | B25: Vehicle Classification Guidelines
B26: Trucks weighing more than 8,500 lb should be classified as "Heavy- Duty Vehicles"
B27: Pickup trucks, vans, and SUVs should be classified as "Light-Duty Trucks"
B28: Non-highway vehicles should be classified as "Construction Equip."
A29: - | B29: Fuel usage and mileage is reported the same for hybrid vehicles as for conventional vehicles. If you are estimating mileage or fuel usage keep in mind the fuel efficiency.
A30: - | B30: If your organization owns a private jet or plane it should be included here. Depending on the fuel it uses, pick the appropriate type from the drop down menu (i.e., Aviation Gasoline Aircraft, Jet Fuel Aircraft).
A31: - | B31: If you are using biodiesel or ethanol, the percentage of biodiesel and ethanol should be filled out accordingly. If you are using these fuels in pure form, then you would enter 100%. If you are using a mixture of biodiesel and petroleum diesel, or a mixture of ethanol and gasoline then you would enter the biodiesel or ethanol percentage in that mixture. For example, B100 is 100% biodiesel, likewise B20 is 20% biodiesel. This is similar for ethanol; E85 is 85% ethanol.

Sheet Help - Refrigeration and AC
A3: Scope 1 Emissions from Refrigeration and Air Conditioning Equipment - HELP SHEET
A5: DEFINITION
A6: Refrigeration and Air Conditioning (AC) equipment sources can vary in size based on the type of organization. Emissions from refrigeration and AC devices, in facilities or vehicles, are caused by the leakage of chemicals with global warming impact during use, maintenance and/or disposal of the device. They are often small sources for office-based organizations. For example, a small office building may have one rooftop AC unit while a grocery store chain may have several rooftop AC units per store as well as a multitude of other refrigeration equipment.
A8: COLLECT
A9: Choose one of three different calculation methods available in the “Refrigeration and AC” section of the Calculator. The types of refrigerants along with the data needs for each method are listed in the Calculator. Data for these sources is often collected from maintenance and inspection records, work orders, or invoices from contractors that service this equipment. Refrigerants not included on the list may be chemicals that do not need to be included in the inventory. For example, ozone depleting substances, such as chlorofluorocarbons (CFCs) or “freon” and hydrochlorofluorocarbons (HCFCs), are regulated internationally and are typically excluded from a GHG inventory or reported as a memo item. A reason to track these sources is to provide explanation for the increase of HFCs and PFCs when they replace the phased out CFCs and HCFCs.
A10: Data Collection Checklist (by equipment)
A11: - | B11: Refrigerant purchase, inventory, and disposal data
A12: - | B12: Inventory of equipment by facility
A13: - | B13: Refrigerant capacity of equipment
A14: - | B14: Amount of refrigerant (HFC and PFC) emitted over the inventory reporting period
A15: - | B15: Optional: Track HCFC and CFCs, such as R-22
A17: QUANTIFY
A18: Determine which of the three options is suitable for your business and enter the data into the appropriate orange colored boxes of the Calculator section titled “Refrigeration and AC.” Once the data are entered into the Calculator, the CO2 equivalent emissions are calculated and summarized in the blue colored box.
B19: Option 1: The Detailed Material Balance Method is recommended for companies who maintain their own equipment. This method requires data from inventories, purchase and service records, and the full and proper charges of equipment. It includes emissions from equipment operation, servicing, and disposal.
B20: Option 2: The Simplified Material Balance Method is recommended for companies who have contractors service their HFC/PFC containing equipment. This method tracks emissions from equipment operation, servicing, and disposal. The method requires data on the quantity of refrigerant: (a) used to fill new equipment during installation, (b) used to service equipment, and (c) recovered from retiring equipment, as well as the full and proper charges of new and retiring equipment. If notified in advance of the need for this information, the contractor should be able to provide it.
B21: Option 3: It is recommended that the Screening Method be used only as a screening tool because the emission factors used in the approach are highly uncertain. Emission factors vary between individual pieces of equipment and over time. Even if the amount of refrigerant added to a piece of equipment has been tracked carefully, permitting the previous leak rate of that equipment to be established, that leak rate can change after a leak is repaired or as the equipment ages.
A23: Items to Note
A24: - | B24: If you are one of many tenants in a facility and you cannot quantify the refrigerant emissions specific to your space, you may estimate them based on the percentage of the floor area that your organization occupies.
A25: - | B25: Emissions from refrigerants in an office-based organization are typically less than 2 percent of emissions. Consider this as you decide which Option is most appropriate.
A26: - | B26: If your organization uses a refrigerant that is not listed, the user may need to determine the constituent blend. This website lists common refrigerant compositions:
B27: http://www.epa.gov/ozone/snap/refrigerants/refblend.html
A28: - | B28: R-134a is the predominantly used refrigerant in vehicle AC systems. If you are uncertain of which refrigerant your vehicles use, you can assume R-134a.

Sheet Help - Fire Suppression
A3: Scope 1 Emissions from Fire Suppression Equipment - HELP SHEET
A5: DEFINITION
A6: Fire suppression emission sources can range in scale from a small portable fire extinguisher to a large scale fire suppression system for an office building or warehouse. The emissions are caused by chemicals (e.g., HFCs or CO2) emitted from fire suppression devices during use, maintenance, and disposal.
A8: COLLECT
A9: Choose one of three different calculation methods available in the “Fire Suppression” section of the Calculator. In each method, choose the types of fire suppression gases used and then gather the corresponding emissions data. Data for these sources is often collected from maintenance and inspection records, work orders, or invoices from contractors that service this equipment.
A10: Data Collection Checklist (by equipment and/or facility)
A11: - | B11: Fire suppressant purchase, inventory, and disposal data
A12: - | B12: Inventory of equipment by facility
A13: - | B13: Fire suppressant capacity of equipment
A14: - | B14: Amount of fire suppressant (HFC and PFC) emitted over the inventory reporting period
A16: QUANTIFY
A17: Enter the data into the appropriate orange colored boxes of the Calculator section titled “Fire Suppression.” Once the data are entered into the Calculator, the CO2 equivalent emissions are calculated and summarized in the blue colored box.
A19: Items to Note
A20: - | B20: Contact the manufacturer if you cannot find the list of propellants or chemicals used in the fire extinguisher.

Sheet Help - Purchased Gases
A3: Scope 1 Emissions from Purchased Gases - HELP SHEET
A5: DEFINITION
A6: Industrial gases are sometimes used in processes such as manufacturing, testing, or laboratory uses. For example, CO2 gas is often used in welding operations. These gases are typically released to the atmosphere after use. Any releases of the seven major greenhouse gases (CO2, CH4, N2O, PFCs, HFCs, SF6, and NF3) must be included in the GHG inventory. Ozone depleting substances, such as CFCs and HCFCs, are regulated internationally and are typically excluded from a GHG inventory or reported as a memo item.
A8: COLLECT
A9: Determine if CO2, CH4, N2O, PFCs, HFCs, SF6 or NF3 are used in processes such as those mentioned above. If so, collect the mass of gas purchased. If data are not available in mass units, the user may need to convert from volume to mass using the density of the specific gas.
A11: Data Collection Checklist (for all applicable facilities)
A12: - | B12: Type of gas purchased
A13: - | B13: Amount of gas purchased
A14: - | B14: Purpose for the gas
A16: QUANTIFY
A17: Enter the data into the appropriate orange colored boxes of the Calculator section titled “Gas.” Once the data are entered into the Calculator, the CO2 equivalent emissions are calculated and summarized in the blue colored box.
A19: Items to Note
A20: - | B20: If your business makes bulk purchases and plans on using the gas for several years, you should divide the bulk amount by the years of usage and report that amount.

Sheet Help - Waste Gases
A3: Scope 1 Emissions from Combustion of Waste Gases - HELP SHEET
A5: DEFINITION
A6: Some operations, such as printing operations or paint booths, emit organic compounds. In some cases these waste gas streams are combusted with a flare or thermal oxidizer. This combustion results in CO2 emissions that should be included in GHG inventories. These are uncommon sources for most office-based organizations.
A8: COLLECT
A9: Collect information about the volume of waste gas that was combusted. Because of the variable composition of waste gas streams, the user will also need to find out what chemicals are present in the waste gas stream, and the quantity of each chemical. Please note that two other data needs, oxidation factor and gas density, should be also collected if practicable; however, default values can be used if needed. The oxidation factor accounts for the amount of carbon in the fuel that is converted to CO2 during combustion.
A10: Data Collection Checklist (for all applicable facilities)
A11: - | B11: Type of waste gases combusted
A12: - | B12: Amount of each waste gas combusted
A13: - | B13: Gas components
A15: QUANTIFY
A16: Enter the data into the appropriate orange colored boxes of the Calculator section titled “Waste Gases.” Once the data are entered into the Calculator, the CO2 equivalent emissions are calculated and summarized in the blue colored box.

Sheet Help - Electricity
A3: Scope 2 Emissions from Purchase of Electricity - HELP SHEET
A5: DEFINITION
A6: GHGs are emitted when fossil fuels are combusted to generate electricity. Companies account for their responsibility for these emissions by reporting them as scope 2 indirect emissions. This Calculator quantifies emissions from both the location-based method and the market-based method, and both totals should be reported. The location-based method considers average emission factors for the electricity grids that provide electricity. The market-based method considers contractual arrangements under which the organization procures power from specific sources, such as renewable energy. Market-based emission factors reflect these arrangements. Examples of market-based emission factors are: renewable energy certificates (RECs), power purchase agreements (PPAs), and supplier-specific factors. For detailed information on the location-based method and the market-based method review EPA's Indirect Emissions from Purchased Electricity Guidance (link at the bottom of this sheet).
A8: COLLECT
A9: Collect electricity purchase information in units of kWh for each facility. The best data source is typically its electricity bill or invoice. In the Calculator, there is a map at the bottom of the “Electricity” section which divides the United States into subregions based on the electric grid. Select the subregion(s) in which the organization’s facilities are located to determine the correct CO2, CH4, and N2O emission factors to use, since different parts of the country use different fuels to generate electricity. Multiple facility locations can be entered as separate line items in the Calculator. If a facility is on the border of a subregion, enter the zip code into EPA's Power Profiler (https://oaspub.epa.gov/powpro/ept_pack.charts) to find the correct subregion.
A10: Data Collection Checklist (for all facilities)
A11: - | B11: Amount of electricity purchased
A12: - | B12: Amount of electricity purchased using contractual arrangements
A13: - | B13: Emission factors (CO2, CH4 and N2O) for contractual arrangements
A15: QUANTIFY
A16: There are two methods to quantify emissions from electricity: location-based and market-based. Both must be quantified to be in accordance with the Center for Corporate Climate Leadership Greenhouse Gas Inventory Guidance.
A17: Location-based: Enter the data into the appropriate orange colored boxes (Table 1) of the Calculator section titled "Electricity.” Once the data are entered into the Calculator, the CO2 equivalent emissions are calculated and summarized in the blue colored box for the location based method.
A18: Market-based: Enter applicable market-based emission factors (lb/MWh) for the purchased electricity in the yellow cells (Table 1) of the Calculator section titled "Electricity.” See the market-based method Help sheet for additional guidance. Once the data are entered into the Calculator, the CO2 equivalent emissions are calculated and summarized in the blue colored box for the market-based method.
A21: Items to Note
A22: - | B22: If you are one of many tenants in a facility and you do not have the actual amount of electricity used in your space, you may estimate your usage by multiplying the electricity usage of the entire facility by the percentage of the floor area that your organization occupies.
A23: - | B23: The number off the utility bill to use is the total usage amount (i.e., the difference between the meter reading at the beginning of the month and the end of the month).
A24: - | B24: Companies with home offices can optionally include these spaces in their inventory if the energy use associated with business activities can be reasonably estimated.
A25: - | B25: The Energy Information Administration conducts a Commercial Building Energy Consumption Survey and provides average energy consumption by building type per square foot. Use the numbers below to compare against your data or to estimate if no data are available. For example, if you have a 1,000 sq ft office suite in the Northeast multiply by 17.1 to get an estimation of 17,100 kWh electricity for a year.
B27: Electricity Intensity | C27: kWh electricity / sq ft / year
B28: Principal Building Activity | C28: Northeast | D28: Midwest | E28: South | F28: West
B29: Education | C29: 8.7 | D29: 10.3 | E29: 12.6 | F29: 10
B30: Food sales | C30: 45 | D30: 50.5 | E30: 56.2 | F30: 42.7
B31: Food service | C31: 39.7 | D31: 43.1 | E31: 49.7 | F31: 41.1
B32: Health care | C32: 22 | D32: 25.1 | E32: 29.5 | F32: 24.6
B33: Inpatient | C33: 26.3 | D33: 28.9 | E33: 34.3 | F33: 32.5
B34: Outpatient | C34: 17.6 | D34: 20.1 | E34: 21.7 | F34: 14.3
B35: Lodging | C35: 14 | D35: 15.4 | E35: 16.6 | F35: 14.1
B36: Mercantile | C36: 16.3 | D36: 17.5 | E36: 19.7 | F36: 17.6
B37: Retail (other than mall) | C37: 12.8 | D37: 14.1 | E37: 16.3 | F37: 15.8
B38: Enclosed and strip malls | C38: 19.9 | D38: 21.4 | E38: 22.5 | F38: 19.1
B39: Office | C39: 17.1 | D39: 15.3 | E39: 16 | F39: 14.9
B40: Public assembly | C40: 14.1 | D40: 13.2 | E40: 16.3 | F40: 13.2
B41: Public order and safety | C41: 15.1 | D41: 10.3 | E41: 18.3 | F41: insufficient data
B42: Religious worship | C42: 4.5 | D42: 4.5 | E42: 6.1 | F42: 4.7
B43: Service | C43: 6.6 | D43: 7.3 | E43: 9.8 | F43: 8.8
B44: Warehouse and storage | C44: 4.9 | D44: 6.6 | E44: 8.4 | F44: 4.8
B45: Other | C45: 43.2 | D45: 20.2 | E45: 32 | F45: 20.3
B46: Vacant | C46: insufficient data | D46: 5.3 | E46: 4 | F46: 5.6
B47: Source: Commercial Buildings Energy Consumption Survey (CBECS) 2012, Released May 2016. Table C15: Electricity consumption and conditional energy intensity by Census region
B48: http://www.eia.gov/consumption/commercial/data/2012/index.cfm?view=consumption#c23-c32
A50: Refer to the Greenhouse Gas Inventory Guidance: Indirect Emissions from Purchased Electricity Guidance for more information.
B51: https://www.epa.gov/climateleadership/center-corporate-climate-leadership-greenhouse-gas-inventory-guidance

Sheet Help - Market-Based Method
A3: Market-Based Method - HELP SHEET
A5: Market-Based Electricity Emission Factors
A6: The market-based method considers contractual arrangements under which the organization procures electricity from specific sources, such as fossil, renewable, or other generation facilities. Market-based emission factors reflect these arrangements. The following are the types of market-based emission factors available, listed in order of preference based on the precision of the factors. If any of the first four types of emission factors are applicable, enter the factors in the yellow cells marked as "<enter factor>". If not, leave the yellow cells as is, and eGRID subregion factors will be used for market-based emissions.
A7: (1) | B7: Energy Attribute Certificates | D7: If an energy attribute certificate carries with it an emission factor, that factor can be used to quantify emissions in the market-based method. Examples are renewable energy certificates (RECs) or Guarantees of Origin (GOs). The emission factor is based on the specific source that the certificate represents, regardless of the energy resource used. Typically these certificates represent renewable energy and may have an emission factor of zero, but they may in some cases have a non-zero emission factor (e.g., if there is a fossil-fuel or biomass generation component).
A8: (2) | B8: Contracts | D8: An organization may have a contract, such as a power purchase agreement (PPA), to purchase electricity from a specified generating facility, which may be located at the organization's facility, at a nearby location with a direct line connection to the organization, or located remotely. If there are no certificates available, the contract itself carries the emission factor associated with the generation facility, regardless of the energy resource used. If certificates are used, see Energy Attribute Certificates above.
A9: (3) | B9: Supplier-Specific Emission Factor | D9: An electricity supplier, such as a regulated utility or a deregulated supplier, may provide information to its customers on the emission factor associated with its electricity product. To be used in the market-based method, the emission factor must include all the electricity delivered by the supplier, including electricity it generates as well as electricity it purchases from others.
A10: (4) | B10: Residual Mix Factor | D10: A residual mix emission factor represents the emissions and generation that remain after certificates, contracts, and supplier-specific factors have been claimed and removed from the calculation. Residual mix emission factors are currently not widely available. Organizations are encouraged to check for available residual mix factors each year when their GHG inventory is completed, if the options above are not available or relevant.
A11: (5) | B11: Regional Emission Factor | D11: If residual mix factors are not available, organizations can use a regional grid average emission factor as the default. This calculator will use eGRID subregion emission factors in this case.
A12: (6) | B12: National Emission Factor | D12: This should not be applicable for any companies reporting US based emissions, due to the availability of regional emission factors.
A14: Quality Criteria for Contractual Instruments
A15: All contractual instruments used in the market-based method must meet the following criteria:
A16: (1) Convey the direct GHG emission rate attribute associated with the unit of electricity produced.
A17: (2) Be the only instruments that carry the GHG emission rate attribute claim associated with that quantity of electricity generation. See the "Items to Note" section of the Help sheet for suggested estimation approaches.
A18: (3) Be tracked and redeemed, retired, or canceled by or on behalf of the reporting entity. This can be done through a tracking system, an audit of contracts, third-party certification, or other means.
A19: (4) Have a vintage that matches as closely as possible to the date of the reporting period to which the instruments are applied. The vintage of the instrument is based on the date of the energy generation that the instrument represents.
A20: (5) Be sourced from the same market in which the reporting entity’s electricity-consuming operations are located and to which the instrument is applied. A market is defined as a geographical area which has a common system for trading and retiring contractual instruments. For this purpose the U.S. constitutes a single market, despite regional grid boundaries.
A21: The Indirect Emissions from Purchased Electricity Guidance defines EPA best-practice quality recommendations that go beyond these minimum requirements.
A23: Items to Note
A24: - | B24: EPA encourages organizations to use renewable energy as a way to reduce the environmental impacts associated with the electricity they purchase. Organizations can reduce their market-based scope 2 emissions by purchasing renewable energy, or “green power.” They can do this by choosing a differentiated electricity product from their utility or electricity supplier, by contracting directly with a renewable energy generator (if the regulatory rules allow), or by purchasing unbundled renewable energy certificates (RECs). In any case, the RECs must be acquired and retired.
A26: An Example
A27: In a situation where an organization has procured electricity from a specific source that is relevant to report for the market-based method, but the source supplies less than 100% of the kWh consumed by the facility, it is important to enter the data correctly. Consider the following scenario:
B28: - 100,000 kWh total facility consumption
B29: - 25,000 kWh purchased with energy attribute certificates such as renewable energy certificates (RECs).
B30: - Emission factors for RECs are zero.
B31: - No other market-based emission factors are available.
A33: The table below shows how to enter the data for this example site. There are two rows entered for the facility in order to allocate the market-based emissions to the appropriate kWh.
A34: The total Electricity Purchased (kWh) of the two rows adds up to facility's total consumption. Be careful not to double count kWh.
A35: The REC emission factors are entered in the first row. In the second row, there is no need to enter market-based emission factors, because none are available.
F37: Market-Based Use these cells to enter contractual or supplier specific emission factors
A38: Table 1. Total Amount of Electricity Purchased by eGRID Subregion | F38: Emission Factors
A39: Source | B39: Source | C39: Source | D39: eGRID Subregion | E39: Electricity | F39: CO2 | G39: CH4 | H39: N2O
A40: ID | B40: Description | C40: Area (sq ft) | D40: where electricity is consumed | E40: Purchased | F40: Emissions | G40: Emissions | H40: Emissions
E41: (kWh) | F41: (lb/MWh) | G41: (lb/MWh) | H41: (lb/MWh)
A42: Building A | B42: Wind Farm RECs | C42: 6000 | D42: RFCW (RFC West) | E42: 25000 | F42: 0 | G42: 0 | H42: 0
A43: Building A | B43: Local Utility | C43: 6000 | D43: RFCW (RFC West) | E43: =100000-E42 -> 75000 | F43: <enter factor> | G43: <enter factor> | H43: <enter factor>
A46: Refer to the Greenhouse Gas Inventory Guidance: Indirect Emissions from Purchased Electricity Guidance for more information.
B47: https://www.epa.gov/climateleadership/center-corporate-climate-leadership-greenhouse-gas-inventory-guidance

Sheet Help - Steam
A3: Scope 2 Emissions from Purchase of Steam - HELP SHEET
A5: DEFINITION
A6: Similar to electricity production, GHGs are emitted when fossil fuels are combusted to generate heat or steam. If the organization purchases heat or steam, the emissions are accounted for as scope 2 indirect emissions. Also similar to electricity, both the location-based method and the market-based method should be calculated and reported as done in this Calculator. Typically supplier-specific emission factors for steam will apply to both location-based and market-based emissions, and no market-based emission factors need to be entered. If needed, see the market-based method Help Sheet for more information.
A8: COLLECT
A9: Determine the amount of steam purchased, the types of fuel that the steam supplier uses to generate the steam, and either the emission factors provided by the steam supplier or the boiler efficiency. If values for boiler efficiency are unavailable, a default of 80% is provided in the Calculator.
A10: Data Collection Checklist (for all facilities)
A11: - | B11: Amount of steam purchased
A12: - | B12: Fuel type used to generate steam
A13: - | B13: Boiler efficiency or supplier-specific emission factors
A15: QUANTIFY
A16: Enter the data into the appropriate orange colored boxes (Table 1) of the Calculator section titled “Steam.” Once the data are entered into the Calculator, the CO2 equivalent emissions are calculated and summarized in the blue colored box. Enter the market-based emission factors in the yellow cells if applicable.
A18: Items to Note
A19: - | B19: Use the heat content sheet to convert units provided on the invoice into the units the Calculator requires.
A20: - | B20: If you are one of many tenants in a facility and you do not have the actual amount of steam used in your space, you may estimate your usage by multiplying the steam usage of the entire facility by the percentage of the floor area that your organization occupies.

Sheet Help - Business Travel
A3: Scope 3 Emissions from Employee Business Travel - HELP SHEET
A5: DEFINITION
A6: Scope 3 employee business travel emissions differ from the scope 1 mobile source emission reporting in that they account for employee business travel in vehicles not owned or leased by the organization, such as taxis, trains, commercial airplanes, and personal vehicles used for sales.
A8: COLLECT
A9: Collect information about employees’ business travel method. Travel by vehicle-miles is used when the employee is traveling in a personal vehicle. Travel by passenger-mile is used when the employee is traveling in a vehicle shared with many other people (i.e., bus, train or plane). For travelers that use a personal vehicle, choose the vehicle type from the Calculator and collect data for the vehicle miles during the reporting period. For rail, bus, and air travel, the mode of travel should be selected from the Calculator options and an estimate of the passenger mileage data provided for each.
A10: Data Collection Checklist (for all employee travel)
A11: - | B11: Type of transport (personal vehicle, train, bus, plane)
A12: - | B12: Miles traveled for each transport type. For air travel, mileage should ideally be determined considering each flight segment individually. If you use a travel agent, they may have these data in their records.
A14: QUANTIFY
A15: Enter the data into the appropriate orange colored boxes (Tables 1-3) of the Calculator section titled “Business Travel.” Once the data are entered into the Calculator, the CO2 equivalent emissions are calculated and summarized in the green colored box.

Sheet Help - Commuting
A3: Scope 3 Emissions from Employee Commuting - HELP SHEET
A5: DEFINITION
A6: Employee commuting emissions differ from the required mobile source emission reporting in that they account for employee travel to and from work in vehicles not owned or leased by the organization, including personal vehicles, buses, and trains.
A8: COLLECT
A9: Collect information about each employee’s commuting method. If not all employees can provide information on their commuting habits, you can calculate an average per employee and multiply by total employees to estimate. For commuters that use a personal vehicle, the appropriate vehicle type should be selected from the Calculator and data collected for the vehicle-miles during the reporting period. For rail, bus, and air travel, the mode of transport should be selected from the Calculator options and an estimate of the passenger mileage data provided for each.
A10: Data Collection Checklist (per Employee)
A11: - | B11: Commuting days per year (consider vacation, sick time and business travel)
A12: - | B12: Mode of transport (this may be multiple modes of transport)
A13: - | B13: Round trip mileage
A15: QUANTIFY
A16: After the data has been collected, enter the data into the appropriate orange colored boxes (Tables 1-2) of the Calculator section titled “Commuting.” Once the data are entered into the Calculator, the CO2 equivalent emissions are calculated and summarized in the green colored box.
A18: Items to Note
A19: - | B19: Commuting by vehicle-miles is used when the employee is traveling in their own vehicle. Travel by passenger-mile is used when the employee is traveling in a vehicle shared with many other people (i.e., bus, train or plane).
A20: - | B20: If employees carpool, only their portion of the mileage should be included in the GHG inventory. For example, if one of your employees drives 10 miles alone to meet two other people (not employees) to carpool and then drives 30 miles to work then the organization should include 20 miles (10 miles + 30 (1/3)) in the corporate inventory.
A21: - | B21: If collecting data from all your employees is not possible due to the size of your organization, you may collect data from as many employees as possible, and use that sample to estimate for the rest of the employees. Make sure the sample size is adequate, and keep in mind this will calculate less accurate results.

Sheet Help - Product Transport
A3: Scope 3 Emissions from Product Transport - HELP SHEET
A5: DEFINITION
A6: Scope 3 emissions from product transport include product and material shipments by vehicles not owned or leased by the organization. For example, the organization could hire another company to transport product from the manufacturing location to distribution centers or final markets. (Note: if an organization owns or leases the trucks or other transport vehicles, these would be part of its scope 1 mobile source emissions). Another example of product transport is paying a courier to transport documents from one office to another.
A8: COLLECT
A9: Collect information about shipment methods (on-road vehicle, waterborne craft, freight rail, or aircraft). For road shipments the user may enter data based on vehicle mileage or ton-miles of product transported. If the vehicle mileage option is chosen, then the organization should select the type of vehicle and enter the total mileage for that vehicle type. The ton-miles option is only applicable for heavy-duty trucks and the organization need only enter the total ton-miles traveled. For product transport via freight rail, waterborne, or air transport, the organization should enter the total ton-miles data.
A10: Data Collection Checklist
A11: - | B11: All product transport legs (origin and destination) and mileage
A12: - | B12: Mode of transport per leg
A13: - | B13: Weight transported per shipment for ton-mile calculation
A15: QUANTIFY
A16: Enter the data into the appropriate orange colored boxes (Tables 1-2) of the Calculator section titled “Product Transport.” Once the data are entered into the Calculator, the CO2 equivalent emissions are calculated and summarized in the green colored box.
A18: Items to Note
A19: - | B19: To calculate ton-miles, multiply the weight transported (short tons) by the distance (miles) for each shipment. In Table 2, you can enter data either for individual shipments, or for the sum of ton-miles for multiple shipments.
A20: - | B20: If you do not have shipment-by-shipment data, you may multiply total tons transported by the average miles per shipment. You may also multiply average tons transported per shipment times the total miles transported. Do not multiply total tons by total miles, as this will give an incorrect result.
A21: - | B21: Example: Every week a company ships 10 short tons of product 100 miles. That equates to 52 shipments per year of 1,000 ton-miles each. The sum of the individual shipments is 52,000 ton-miles per year. Multiplying the total tons transported (520 tons) by the average miles per shipment (100 miles) provides the correct result of 52,000 ton-miles. Multiplying the average tons transported per shipment (10 tons) times the total miles (5,200 miles) also gives the correct result. Multiplying total tons (520 tons) by total miles (5,200 miles) gives an incorrect result.

Sheet Help - Offsets
A3: Purchased Offsets - HELP SHEET
A5: DEFINITION
A6: Offsets are project-based emission reductions and/or removals that occur outside the organizational boundary of the reporting organization. Offsets can be purchased by an organization to offset emissions from scope 1, scope 2, and scope 3 sources.
A8: COLLECT
A9: Quantity of offsets purchased in metric tons CO2 equivalent for each offset project.
A11: QUANTIFY
A12: Enter the data into the appropriate orange colored boxes (Table 1) of the Calculator section titled "Offsets.” Once the data are entered into the Calculator, the CO2 equivalent emissions are summarized in the green colored box.
